BODY,BODY NAME,9CCC - Level 9 Cost Centre Code,9CCN - Level 9 Cost Centre Name,9AC - Level 9 Account Code,9AN - Level 9 Account Name,Transaction Reference Code,Entry Date,Posting Date,Customer/Supplier Code,Customer/Supplier Name,Their Ref, Amount(Transaction Line Amount) 
http://statistics.data.gov.uk/id/local-authority/12UE,Huntingdonshire District Council,CH45,Transformation - Customers,100,Hired Staff,222673,15/12/2017,15/12/2017,CR423917,HAYS,10080443422,"-2,502.50 "
http://statistics.data.gov.uk/id/local-authority/12UE,Huntingdonshire District Council,QE90,Property Development And Mgt,100,Hired Staff,222386,12/12/2017,12/12/2017,CR455208,CFL ESTATE SERVICES,HDC078, 270.00 
http://statistics.data.gov.uk/id/local-authority/12UE,Huntingdonshire District Council,CH45,Transformation - Customers,100,Hired Staff,222395,13/12/2017,13/12/2017,CR482676,ADVANTAGE,126683, 275.00 
http://statistics.data.gov.uk/id/local-authority/12UE,Huntingdonshire District Council,MU69,Customer Service Centres,100,Hired Staff,222738,18/12/2017,18/12/2017,CR424715,ADVANTAGE RESOURCING,90477603, 282.69 
http://statistics.data.gov.uk/id/local-authority/12UE,Huntingdonshire District Council,ER01,Domestic Waste Collection,100,Hired Staff,221864,06/12/2017,07/12/2017,CR416827,STAFFLINE GROUP,IN0642992, 290.18 
http://statistics.data.gov.uk/id/local-authority/12UE,Huntingdonshire District Council,MU69,Customer Service Centres,100,Hired Staff,221786,07/12/2017,07/12/2017,CR422369,MEYER SCOTT RECRUITMENT LIMITED,35959, 290.18 
http://statistics.data.gov.uk/id/local-authority/12UE,Huntingdonshire District Council,MU69,Customer Service Centres,100,Hired Staff,222061,07/12/2017,07/12/2017,CR422369,MEYER SCOTT RECRUITMENT LIMITED,35992, 290.18 
http://statistics.data.gov.uk/id/local-authority/12UE,Huntingdonshire District Council,ER01,Domestic Waste Collection,100,Hired Staff,221064,13/12/2017,14/12/2017,CR416827,STAFFLINE GROUP,IN0639787, 296.78 
http://statistics.data.gov.uk/id/local-authority/12UE,Huntingdonshire District Council,LQ27,Burgess Bar,100,Hired Staff,222690,20/12/2017,20/12/2017,CR422374,POINT PROFESSIONAL RECRUITMENT LTD,12036, 310.12 
http://statistics.data.gov.uk/id/local-authority/12UE,Huntingdonshire District Council,MU69,Customer Service Centres,100,Hired Staff,222062,07/12/2017,07/12/2017,CR424715,ADVANTAGE RESOURCING,90475736, 338.81 
http://statistics.data.gov.uk/id/local-authority/12UE,Huntingdonshire District Council,MU76,Finance,100,Hired Staff,222365,12/12/2017,12/12/2017,CR424012,FIRST RECRUITMENT GROUP LTD,295428, 367.72 
http://statistics.data.gov.uk/id/local-authority/12UE,Huntingdonshire District Council,MU76,Finance,100,Hired Staff,222364,12/12/2017,12/12/2017,CR424012,FIRST RECRUITMENT GROUP LTD,295427, 378.90 
http://statistics.data.gov.uk/id/local-authority/12UE,Huntingdonshire District Council,MU76,Finance,100,Hired Staff,223089,21/12/2017,21/12/2017,CR424012,FIRST RECRUITMENT GROUP LTD,296207, 383.11 
http://statistics.data.gov.uk/id/local-authority/12UE,Huntingdonshire District Council,ER01,Domestic Waste Collection,100,Hired Staff,220997,13/12/2017,14/12/2017,CR416827,STAFFLINE GROUP,IN0638793, 389.11 
http://statistics.data.gov.uk/id/local-authority/12UE,Huntingdonshire District Council,MU35,Housing Needs & Resources,100,Hired Staff,222229,14/12/2017,14/12/2017,CR422369,MEYER SCOTT RECRUITMENT LIMITED,35993, 436.23 
http://statistics.data.gov.uk/id/local-authority/12UE,Huntingdonshire District Council,MU35,Housing Needs & Resources,100,Hired Staff,222757,20/12/2017,20/12/2017,CR422369,MEYER SCOTT RECRUITMENT LIMITED,36026, 439.18 
http://statistics.data.gov.uk/id/local-authority/12UE,Huntingdonshire District Council,MU76,Finance,100,Hired Staff,222366,12/12/2017,12/12/2017,CR424012,FIRST RECRUITMENT GROUP LTD,294692, 446.26 
http://statistics.data.gov.uk/id/local-authority/12UE,Huntingdonshire District Council,LQ27,Burgess Bar,100,Hired Staff,222089,13/12/2017,14/12/2017,CR422374,POINT PROFESSIONAL RECRUITMENT LTD,11987, 467.20 
http://statistics.data.gov.uk/id/local-authority/12UE,Huntingdonshire District Council,MU76,Finance,100,Hired Staff,222367,12/12/2017,12/12/2017,CR424012,FIRST RECRUITMENT GROUP LTD,294693, 469.16 
http://statistics.data.gov.uk/id/local-authority/12UE,Huntingdonshire District Council,MU76,Finance,100,Hired Staff,223090,21/12/2017,21/12/2017,CR424012,FIRST RECRUITMENT GROUP LTD,296208, 469.16 
http://statistics.data.gov.uk/id/local-authority/12UE,Huntingdonshire District Council,ER01,Domestic Waste Collection,100,Hired Staff,220995,13/12/2017,14/12/2017,CR416827,STAFFLINE GROUP,IN0636792, 488.03 
http://statistics.data.gov.uk/id/local-authority/12UE,Huntingdonshire District Council,ER01,Domestic Waste Collection,100,Hired Staff,221862,06/12/2017,07/12/2017,CR416827,STAFFLINE GROUP,IN0641477, 488.03 
http://statistics.data.gov.uk/id/local-authority/12UE,Huntingdonshire District Council,MD20,Imd Shared Service,100,Hired Staff,222819,19/12/2017,20/12/2017,CR425010,ROC RESEARCH LIMITED,SI-32577, 531.30 
http://statistics.data.gov.uk/id/local-authority/12UE,Huntingdonshire District Council,MD20,Imd Shared Service,100,Hired Staff,222395,13/12/2017,13/12/2017,CR482676,ADVANTAGE,126683, 550.00 
http://statistics.data.gov.uk/id/local-authority/12UE,Huntingdonshire District Council,MD20,Imd Shared Service,100,Hired Staff,222817,19/12/2017,20/12/2017,CR424731,L A INTERNATIONAL COMPUTER CONSULTANTS LTD,LA468473, 592.50 
http://statistics.data.gov.uk/id/local-authority/12UE,Huntingdonshire District Council,MD20,Imd Shared Service,100,Hired Staff,222396,13/12/2017,13/12/2017,CR424731,L A INTERNATIONAL COMPUTER CONSULTANTS LTD,LA467319, 600.00 
http://statistics.data.gov.uk/id/local-authority/12UE,Huntingdonshire District Council,MD20,Imd Shared Service,100,Hired Staff,221952,06/12/2017,07/12/2017,CR425010,ROC RESEARCH LIMITED,SI-32177, 664.13 
http://statistics.data.gov.uk/id/local-authority/12UE,Huntingdonshire District Council,MD20,Imd Shared Service,100,Hired Staff,222392,13/12/2017,13/12/2017,CR425010,ROC RESEARCH LIMITED,SI-32418, 664.13 
http://statistics.data.gov.uk/id/local-authority/12UE,Huntingdonshire District Council,MD20,Imd Shared Service,100,Hired Staff,222922,20/12/2017,20/12/2017,CR425010,ROC RESEARCH LIMITED,SI-32754, 664.13 
http://statistics.data.gov.uk/id/local-authority/12UE,Huntingdonshire District Council,MU76,Finance,100,Hired Staff,222864,19/12/2017,19/12/2017,CR423917,HAYS,1008178951, 707.00 
http://statistics.data.gov.uk/id/local-authority/12UE,Huntingdonshire District Council,MD20,Imd Shared Service,100,Hired Staff,221951,06/12/2017,07/12/2017,CR424731,L A INTERNATIONAL COMPUTER CONSULTANTS LTD,LA465665, 740.63 
http://statistics.data.gov.uk/id/local-authority/12UE,Huntingdonshire District Council,MD20,Imd Shared Service,100,Hired Staff,222398,13/12/2017,13/12/2017,CR424731,L A INTERNATIONAL COMPUTER CONSULTANTS LTD,LA467318, 740.63 
http://statistics.data.gov.uk/id/local-authority/12UE,Huntingdonshire District Council,CH45,Transformation - Customers,100,Hired Staff,222812,19/12/2017,20/12/2017,CR482676,ADVANTAGE,126765, 825.00 
http://statistics.data.gov.uk/id/local-authority/12UE,Huntingdonshire District Council,MU76,Finance,100,Hired Staff,222525,14/12/2017,14/12/2017,CR423917,HAYS,22200619863, 894.51 
http://statistics.data.gov.uk/id/local-authority/12UE,Huntingdonshire District Council,QE90,Property Development And Mgt,100,Hired Staff,222709,18/12/2017,18/12/2017,CR424684,PRIME PEOPLE,SI-00002168, 900.00 
http://statistics.data.gov.uk/id/local-authority/12UE,Huntingdonshire District Council,MU76,Finance,100,Hired Staff,222866,19/12/2017,19/12/2017,CR423917,HAYS,1008178949, 938.00 
http://statistics.data.gov.uk/id/local-authority/12UE,Huntingdonshire District Council,MU76,Finance,100,Hired Staff,222869,19/12/2017,19/12/2017,CR423917,HAYS,1008178950, 938.00 
http://statistics.data.gov.uk/id/local-authority/12UE,Huntingdonshire District Council,MU76,Finance,100,Hired Staff,222524,14/12/2017,14/12/2017,CR423917,HAYS,22200619863, 945.00 
http://statistics.data.gov.uk/id/local-authority/12UE,Huntingdonshire District Council,MU69,Customer Service Centres,100,Hired Staff,221787,07/12/2017,07/12/2017,CR424715,ADVANTAGE RESOURCING,90473845, 999.73 
http://statistics.data.gov.uk/id/local-authority/12UE,Huntingdonshire District Council,QE90,Property Development And Mgt,100,Hired Staff,222368,12/12/2017,12/12/2017,CR424684,PRIME PEOPLE,SI-00001892," 1,050.00 "
http://statistics.data.gov.uk/id/local-authority/12UE,Huntingdonshire District Council,QE90,Property Development And Mgt,100,Hired Staff,222712,18/12/2017,18/12/2017,CR423917,HAYS,1008143955," 1,125.00 "
http://statistics.data.gov.uk/id/local-authority/12UE,Huntingdonshire District Council,ER01,Domestic Waste Collection,100,Hired Staff,222777,28/12/2017,28/12/2017,CR416827,STAFFLINE GROUP,IN0645697," 1,373.36 "
http://statistics.data.gov.uk/id/local-authority/12UE,Huntingdonshire District Council,MD20,Imd Shared Service,100,Hired Staff,221950,06/12/2017,07/12/2017,CR424731,L A INTERNATIONAL COMPUTER CONSULTANTS LTD,LA465666," 1,500.00 "
http://statistics.data.gov.uk/id/local-authority/12UE,Huntingdonshire District Council,QE90,Property Development And Mgt,100,Hired Staff,222710,18/12/2017,18/12/2017,CR424684,PRIME PEOPLE,SI-00001917," 1,500.00 "
http://statistics.data.gov.uk/id/local-authority/12UE,Huntingdonshire District Council,ER01,Domestic Waste Collection,100,Hired Staff,221863,06/12/2017,07/12/2017,CR416827,STAFFLINE GROUP,IN0642766," 1,505.15 "
http://statistics.data.gov.uk/id/local-authority/12UE,Huntingdonshire District Council,ER01,Domestic Waste Collection,100,Hired Staff,221066,13/12/2017,14/12/2017,CR416827,STAFFLINE GROUP,IN0639680," 1,610.31 "
http://statistics.data.gov.uk/id/local-authority/12UE,Huntingdonshire District Council,ER01,Domestic Waste Collection,100,Hired Staff,222324,13/12/2017,14/12/2017,CR416827,STAFFLINE GROUP,IN0644138," 1,636.90 "
http://statistics.data.gov.uk/id/local-authority/12UE,Huntingdonshire District Council,MD20,Imd Shared Service,100,Hired Staff,221947,06/12/2017,07/12/2017,CR482676,ADVANTAGE,126621," 1,650.00 "
http://statistics.data.gov.uk/id/local-authority/12UE,Huntingdonshire District Council,MD20,Imd Shared Service,100,Hired Staff,222399,13/12/2017,13/12/2017,CR454029,PREMIER IT RECRUITMENT LTD,R024525," 1,665.00 "
http://statistics.data.gov.uk/id/local-authority/12UE,Huntingdonshire District Council,MD20,Imd Shared Service,100,Hired Staff,222818,19/12/2017,20/12/2017,CR454029,PREMIER IT RECRUITMENT LTD,R024606," 1,665.00 "
http://statistics.data.gov.uk/id/local-authority/12UE,Huntingdonshire District Council,ER01,Domestic Waste Collection,100,Hired Staff,220994,13/12/2017,14/12/2017,CR416827,STAFFLINE GROUP,IN0636485," 1,711.17 "
http://statistics.data.gov.uk/id/local-authority/12UE,Huntingdonshire District Council,MU76,Finance,100,Hired Staff,222713,18/12/2017,18/12/2017,CR423917,HAYS,1008142660," 1,843.90 "
http://statistics.data.gov.uk/id/local-authority/12UE,Huntingdonshire District Council,MD20,Imd Shared Service,100,Hired Staff,222400,13/12/2017,13/12/2017,CR454029,PREMIER IT RECRUITMENT LTD,R024381," 1,850.00 "
http://statistics.data.gov.uk/id/local-authority/12UE,Huntingdonshire District Council,ES01,Street Cleansing,100,Hired Staff,221865,06/12/2017,07/12/2017,CR416827,STAFFLINE GROUP,IN0641214," 1,974.33 "
http://statistics.data.gov.uk/id/local-authority/12UE,Huntingdonshire District Council,MD20,Imd Shared Service,100,Hired Staff,221948,06/12/2017,07/12/2017,CR482676,ADVANTAGE,126638," 2,100.00 "
http://statistics.data.gov.uk/id/local-authority/12UE,Huntingdonshire District Council,MD20,Imd Shared Service,100,Hired Staff,222394,13/12/2017,13/12/2017,CR482676,ADVANTAGE,126684," 2,100.00 "
http://statistics.data.gov.uk/id/local-authority/12UE,Huntingdonshire District Council,MD20,Imd Shared Service,100,Hired Staff,222814,19/12/2017,20/12/2017,CR482676,ADVANTAGE,126745," 2,100.00 "
http://statistics.data.gov.uk/id/local-authority/12UE,Huntingdonshire District Council,CH45,Transformation - Customers,100,Hired Staff,222928,18/12/2017,20/12/2017,CR423917,HAYS,1008170728," 2,145.00 "
http://statistics.data.gov.uk/id/local-authority/12UE,Huntingdonshire District Council,QE90,Property Development And Mgt,100,Hired Staff,222385,12/12/2017,12/12/2017,CR455208,CFL ESTATE SERVICES,HDC077," 2,203.00 "
http://statistics.data.gov.uk/id/local-authority/12UE,Huntingdonshire District Council,ER01,Domestic Waste Collection,100,Hired Staff,220996,13/12/2017,14/12/2017,CR416827,STAFFLINE GROUP,IN0637991," 2,390.39 "
http://statistics.data.gov.uk/id/local-authority/12UE,Huntingdonshire District Council,ES01,Street Cleansing,100,Hired Staff,221866,06/12/2017,07/12/2017,CR416827,STAFFLINE GROUP,IN0642770," 2,442.47 "
http://statistics.data.gov.uk/id/local-authority/12UE,Huntingdonshire District Council,ER01,Domestic Waste Collection,100,Hired Staff,220990,13/12/2017,14/12/2017,CR416827,STAFFLINE GROUP,IN0637992," 2,494.48 "
http://statistics.data.gov.uk/id/local-authority/12UE,Huntingdonshire District Council,ER01,Domestic Waste Collection,100,Hired Staff,221062,13/12/2017,14/12/2017,CR416827,STAFFLINE GROUP,IN0639681," 2,556.14 "
http://statistics.data.gov.uk/id/local-authority/12UE,Huntingdonshire District Council,ER01,Domestic Waste Collection,100,Hired Staff,221861,06/12/2017,07/12/2017,CR416827,STAFFLINE GROUP,IN0641212," 2,559.91 "
http://statistics.data.gov.uk/id/local-authority/12UE,Huntingdonshire District Council,ES01,Street Cleansing,100,Hired Staff,222325,13/12/2017,14/12/2017,CR416827,STAFFLINE GROUP,IN0644140," 2,566.24 "
http://statistics.data.gov.uk/id/local-authority/12UE,Huntingdonshire District Council,QE90,Property Development And Mgt,100,Hired Staff,222711,18/12/2017,18/12/2017,CR423917,HAYS,1008146523," 2,600.00 "
http://statistics.data.gov.uk/id/local-authority/12UE,Huntingdonshire District Council,ER01,Domestic Waste Collection,100,Hired Staff,222321,13/12/2017,14/12/2017,CR416827,STAFFLINE GROUP,IN0644139," 2,786.20 "
http://statistics.data.gov.uk/id/local-authority/12UE,Huntingdonshire District Council,ER01,Domestic Waste Collection,100,Hired Staff,221855,06/12/2017,07/12/2017,CR416827,STAFFLINE GROUP,IN0642769," 2,842.33 "
http://statistics.data.gov.uk/id/local-authority/12UE,Huntingdonshire District Council,EQ02,Recycling Collections,100,Hired Staff,222776,28/12/2017,28/12/2017,CR416827,STAFFLINE GROUP,IN0645696," 2,950.95 "
http://statistics.data.gov.uk/id/local-authority/12UE,Huntingdonshire District Council,MD20,Imd Shared Service,100,Hired Staff,221949,06/12/2017,07/12/2017,CR424731,L A INTERNATIONAL COMPUTER CONSULTANTS LTD,LA466489," 3,068.10 "
http://statistics.data.gov.uk/id/local-authority/12UE,Huntingdonshire District Council,ES01,Street Cleansing,100,Hired Staff,222779,21/12/2017,21/12/2017,CR416827,STAFFLINE GROUP,IN0645699," 3,092.39 "
http://statistics.data.gov.uk/id/local-authority/12UE,Huntingdonshire District Council,EQ02,Recycling Collections,100,Hired Staff,222322,13/12/2017,14/12/2017,CR416827,STAFFLINE GROUP,IN0644136," 3,132.44 "
http://statistics.data.gov.uk/id/local-authority/12UE,Huntingdonshire District Council,ER01,Domestic Waste Collection,100,Hired Staff,222773,28/12/2017,28/12/2017,CR416827,STAFFLINE GROUP,IN0645698," 3,180.73 "
http://statistics.data.gov.uk/id/local-authority/12UE,Huntingdonshire District Council,ER01,Domestic Waste Collection,100,Hired Staff,221854,06/12/2017,07/12/2017,CR416827,STAFFLINE GROUP,IN0641213," 3,191.58 "
http://statistics.data.gov.uk/id/local-authority/12UE,Huntingdonshire District Council,EQ02,Recycling Collections,100,Hired Staff,221858,06/12/2017,07/12/2017,CR416827,STAFFLINE GROUP,IN0642765," 3,226.70 "
http://statistics.data.gov.uk/id/local-authority/12UE,Huntingdonshire District Council,EQ02,Recycling Collections,100,Hired Staff,221857,06/12/2017,07/12/2017,CR416827,STAFFLINE GROUP,IN0641211," 3,461.30 "
http://statistics.data.gov.uk/id/local-authority/12UE,Huntingdonshire District Council,CH45,Transformation - Customers,100,Hired Staff,222269,11/12/2017,11/12/2017,CR423917,HAYS,1008026691," 3,575.00 "
http://statistics.data.gov.uk/id/local-authority/12UE,Huntingdonshire District Council,MD23,Scdc Recharge Invoices,100,Hired Staff,222393,13/12/2017,13/12/2017,CR424715,ADVANTAGE RESOURCING,90475004," 12,528.00 "
http://statistics.data.gov.uk/id/local-authority/12UE,Huntingdonshire District Council,EG06,Grounds Maintenance,120,Recruitment Costs,221984,06/12/2017,07/12/2017,CR403271,ARCHANT HERTS AND CAMBS,82795490, 390.10 
http://statistics.data.gov.uk/id/local-authority/12UE,Huntingdonshire District Council,ER01,Domestic Waste Collection,120,Recruitment Costs,221984,06/12/2017,07/12/2017,CR403271,ARCHANT HERTS AND CAMBS,82795490, 608.50 
http://statistics.data.gov.uk/id/local-authority/12UE,Huntingdonshire District Council,ER01,Domestic Waste Collection,120,Recruitment Costs,222380,12/12/2017,14/12/2017,CR403271,ARCHANT HERTS AND CAMBS,82798769, 608.50 
http://statistics.data.gov.uk/id/local-authority/12UE,Huntingdonshire District Council,MH07,Hr & Payroll Services,130,Training,222326,19/12/2017,19/12/2017,CR025035,WEST ANGLIA TRAINING ASSOC.LTD,51397, 298.00 
http://statistics.data.gov.uk/id/local-authority/12UE,Huntingdonshire District Council,MH07,Hr & Payroll Services,130,Training,222888,19/12/2017,19/12/2017,CR425061,SAFETY SOLUTIONS,2250, 400.00 
http://statistics.data.gov.uk/id/local-authority/12UE,Huntingdonshire District Council,MH07,Hr & Payroll Services,130,Training,222930,20/12/2017,20/12/2017,CR005649,BEDFORD COLLEGE,51950, 605.00 
http://statistics.data.gov.uk/id/local-authority/12UE,Huntingdonshire District Council,MH07,Hr & Payroll Services,130,Training,222273,20/12/2017,20/12/2017,CR000200,DENNIS EAGLE LTD,D99413, 772.55 
http://statistics.data.gov.uk/id/local-authority/12UE,Huntingdonshire District Council,LQ90,Site & Centre Management,130,Training,222846,20/12/2017,20/12/2017,CR478241,GENESIS  LIFTS LTD,30702, 800.00 
http://statistics.data.gov.uk/id/local-authority/12UE,Huntingdonshire District Council,MD20,Imd Shared Service,130,Training,221946,06/12/2017,07/12/2017,CR482644,PDP TRAINING,PDPT-PCF01-3074," 1,850.00 "
http://statistics.data.gov.uk/id/local-authority/12UE,Huntingdonshire District Council,CH20,Corporate Director (Services),137,Conferences,619172,22/12/2017,22/12/2017,CR425074,PERSONAL DATA REDACTED,, 255.81 
http://statistics.data.gov.uk/id/local-authority/12UE,Huntingdonshire District Council,MH07,Hr & Payroll Services,144,Childcare Admin Vouchers,223100,21/12/2017,21/12/2017,CR412205,COMPUTERSHARE VOUCHERS LTD,C-0002635759, 257.04 
http://statistics.data.gov.uk/id/local-authority/12UE,Huntingdonshire District Council,CH09,Non Distributed Costs,150,Pension Increase Act Payments,222708,18/12/2017,18/12/2017,CR017440,CAMBRIDGESHIRE COUNTY COUNCIL,16016529," 45,906.69 "
http://statistics.data.gov.uk/id/local-authority/12UE,Huntingdonshire District Council,CH09,Non Distributed Costs,150,Pension Increase Act Payments,222708,18/12/2017,18/12/2017,CR017440,CAMBRIDGESHIRE COUNTY COUNCIL,16016529," 46,155.82 "
http://statistics.data.gov.uk/id/local-authority/12UE,Huntingdonshire District Council,ER01,Domestic Waste Collection,163,Protective Clothing & Uniforms,221842,06/12/2017,07/12/2017,CR423139,SMI GROUP,443375, 351.75 
http://statistics.data.gov.uk/id/local-authority/12UE,Huntingdonshire District Council,LB30,S&A Lifestyles Gen Mng'T,163,Protective Clothing & Uniforms,221811,20/12/2017,20/12/2017,CR417271,TAYLOR MADE DESIGNS,1043850, 648.10 
http://statistics.data.gov.uk/id/local-authority/12UE,Huntingdonshire District Council,ER01,Domestic Waste Collection,163,Protective Clothing & Uniforms,221843,06/12/2017,07/12/2017,CR423139,SMI GROUP,441480, 865.35 
http://statistics.data.gov.uk/id/local-authority/12UE,Huntingdonshire District Council,ER01,Domestic Waste Collection,163,Protective Clothing & Uniforms,221841,06/12/2017,07/12/2017,CR423139,SMI GROUP,439859," 1,121.60 "
http://statistics.data.gov.uk/id/local-authority/12UE,Huntingdonshire District Council,LP90,Site & Centre Management,200,Furniture,222048,13/12/2017,14/12/2017,CR006566,ESPO,4684886, 340.00 
http://statistics.data.gov.uk/id/local-authority/12UE,Huntingdonshire District Council,LL01,Leisure Centre Corporate Mngmt,203,Other I T Hardware,221934,06/12/2017,07/12/2017,CR000242,INSIGHT DIRECT UK LTD,3657044, 720.00 
http://statistics.data.gov.uk/id/local-authority/12UE,Huntingdonshire District Council,LQ21,Burgess Hall,203,Other I T Hardware,222792,19/12/2017,20/12/2017,CR000242,INSIGHT DIRECT UK LTD,3676535, 720.00 
http://statistics.data.gov.uk/id/local-authority/12UE,Huntingdonshire District Council,MD23,Scdc Recharge Invoices,203,Other I T Hardware,221935,06/12/2017,07/12/2017,CR000242,INSIGHT DIRECT UK LTD,3657064, 720.00 
http://statistics.data.gov.uk/id/local-authority/12UE,Huntingdonshire District Council,MU05,Commercial Team,203,Other I T Hardware,221936,06/12/2017,07/12/2017,CR000242,INSIGHT DIRECT UK LTD,3657053, 720.00 
http://statistics.data.gov.uk/id/local-authority/12UE,Huntingdonshire District Council,MU73,Procurement,203,Other I T Hardware,221937,06/12/2017,07/12/2017,CR000242,INSIGHT DIRECT UK LTD,3658787, 720.00 
http://statistics.data.gov.uk/id/local-authority/12UE,Huntingdonshire District Council,L213,Ol Huntingdon Expansion,203,Other I T Hardware,222790,19/12/2017,20/12/2017,CR423396,GALTEC SOLUTIONS LTD,115039/119214," 1,148.15 "
http://statistics.data.gov.uk/id/local-authority/12UE,Huntingdonshire District Council,MD22,Ccity Recharge Invoices,203,Other I T Hardware,222803,19/12/2017,20/12/2017,CR479055,PLAYFORDS LTD,14941," 27,076.96 "
http://statistics.data.gov.uk/id/local-authority/12UE,Huntingdonshire District Council,MD20,Imd Shared Service,206,Software,221960,06/12/2017,07/12/2017,CR031918,PHOENIX SOFTWARE LTD,OP/1810265, 304.04 
http://statistics.data.gov.uk/id/local-authority/12UE,Huntingdonshire District Council,ER01,Domestic Waste Collection,206,Software,222816,28/12/2017,29/12/2017,CR423561,ALERE TOXICOLOGY PLC,559996, 500.00 
http://statistics.data.gov.uk/id/local-authority/12UE,Huntingdonshire District Council,MD20,Imd Shared Service,206,Software,221983,06/12/2017,07/12/2017,CR031918,PHOENIX SOFTWARE LTD,OP/1810600, 538.70 
http://statistics.data.gov.uk/id/local-authority/12UE,Huntingdonshire District Council,DA03,Contaminated Land,206,Software,222438,13/12/2017,13/12/2017,CR401267,BRITISH GEOLOGICAL SURVEY,NERC21076, 690.13 
http://statistics.data.gov.uk/id/local-authority/12UE,Huntingdonshire District Council,GL14,Land Enquiry Con 29 Full,206,Software,222438,13/12/2017,13/12/2017,CR401267,BRITISH GEOLOGICAL SURVEY,NERC21076, 690.14 
http://statistics.data.gov.uk/id/local-authority/12UE,Huntingdonshire District Council,MU16,Development Management,206,Software,222438,13/12/2017,13/12/2017,CR401267,BRITISH GEOLOGICAL SURVEY,NERC21076, 690.14 
http://statistics.data.gov.uk/id/local-authority/12UE,Huntingdonshire District Council,MD20,Imd Shared Service,206,Software,221945,06/12/2017,07/12/2017,CR452714,ZOHO CORPORATION PRIVATE LTD,3131848, 776.00 
http://statistics.data.gov.uk/id/local-authority/12UE,Huntingdonshire District Council,MD24,Hdc Recharge Invoices,206,Software,222794,19/12/2017,20/12/2017,CR031918,PHOENIX SOFTWARE LTD,OP/1810925, 811.60 
http://statistics.data.gov.uk/id/local-authority/12UE,Huntingdonshire District Council,MD24,Hdc Recharge Invoices,206,Software,222442,13/12/2017,13/12/2017,CR481134,IDOX,7017400, 950.00 
http://statistics.data.gov.uk/id/local-authority/12UE,Huntingdonshire District Council,MD24,Hdc Recharge Invoices,206,Software,222434,13/12/2017,13/12/2017,CR403291,SOCITM,BB18-051, 995.00 
http://statistics.data.gov.uk/id/local-authority/12UE,Huntingdonshire District Council,MD20,Imd Shared Service,206,Software,221945,06/12/2017,07/12/2017,CR452714,ZOHO CORPORATION PRIVATE LTD,3131848," 1,127.00 "
http://statistics.data.gov.uk/id/local-authority/12UE,Huntingdonshire District Council,MD20,Imd Shared Service,206,Software,221945,06/12/2017,07/12/2017,CR452714,ZOHO CORPORATION PRIVATE LTD,3131848," 1,127.00 "
http://statistics.data.gov.uk/id/local-authority/12UE,Huntingdonshire District Council,MD24,Hdc Recharge Invoices,206,Software,221397,19/12/2017,20/12/2017,CR455456,GB GROUP PLC,236979," 1,600.00 "
http://statistics.data.gov.uk/id/local-authority/12UE,Huntingdonshire District Council,MD23,Scdc Recharge Invoices,206,Software,221953,06/12/2017,07/12/2017,CR424755,ORCHARD INFORMATION SYSTEMS LTD,SLMR/00011247," 2,052.14 "
http://statistics.data.gov.uk/id/local-authority/12UE,Huntingdonshire District Council,MD24,Hdc Recharge Invoices,206,Software,222796,19/12/2017,20/12/2017,CR031918,PHOENIX SOFTWARE LTD,OP/1811511," 2,146.50 "
http://statistics.data.gov.uk/id/local-authority/12UE,Huntingdonshire District Council,MD23,Scdc Recharge Invoices,206,Software,222428,13/12/2017,13/12/2017,CR031918,PHOENIX SOFTWARE LTD,OP/1811157," 2,160.00 "
http://statistics.data.gov.uk/id/local-authority/12UE,Huntingdonshire District Council,MD24,Hdc Recharge Invoices,206,Software,222796,19/12/2017,20/12/2017,CR031918,PHOENIX SOFTWARE LTD,OP/1811511," 3,665.40 "
http://statistics.data.gov.uk/id/local-authority/12UE,Huntingdonshire District Council,MD22,Ccity Recharge Invoices,206,Software,221962,06/12/2017,07/12/2017,CR425040,SUNGARD AVAILABILITY SERVICES,17004402," 3,723.96 "
http://statistics.data.gov.uk/id/local-authority/12UE,Huntingdonshire District Council,MD22,Ccity Recharge Invoices,206,Software,221963,06/12/2017,07/12/2017,CR425040,SUNGARD AVAILABILITY SERVICES,17005060," 3,723.96 "
http://statistics.data.gov.uk/id/local-authority/12UE,Huntingdonshire District Council,MD22,Ccity Recharge Invoices,206,Software,221964,06/12/2017,07/12/2017,CR425040,SUNGARD AVAILABILITY SERVICES,17005587," 3,723.96 "
http://statistics.data.gov.uk/id/local-authority/12UE,Huntingdonshire District Council,MD22,Ccity Recharge Invoices,206,Software,221966,06/12/2017,07/12/2017,CR425040,SUNGARD AVAILABILITY SERVICES,17006128," 3,723.96 "
http://statistics.data.gov.uk/id/local-authority/12UE,Huntingdonshire District Council,MD22,Ccity Recharge Invoices,206,Software,221967,06/12/2017,07/12/2017,CR425040,SUNGARD AVAILABILITY SERVICES,17006789," 3,723.96 "
http://statistics.data.gov.uk/id/local-authority/12UE,Huntingdonshire District Council,MD22,Ccity Recharge Invoices,206,Software,223095,21/12/2017,22/12/2017,CR425041,HALAROSE LIMITED,10615," 3,724.82 "
http://statistics.data.gov.uk/id/local-authority/12UE,Huntingdonshire District Council,MD22,Ccity Recharge Invoices,206,Software,223094,21/12/2017,22/12/2017,CR425041,HALAROSE LIMITED,10589," 9,671.00 "
http://statistics.data.gov.uk/id/local-authority/12UE,Huntingdonshire District Council,MD24,Hdc Recharge Invoices,206,Software,222821,19/12/2017,20/12/2017,CR455548,CALLCREDIT LTD,11900," 10,480.00 "
http://statistics.data.gov.uk/id/local-authority/12UE,Huntingdonshire District Council,MD24,Hdc Recharge Invoices,206,Software,222800,19/12/2017,20/12/2017,CR031918,PHOENIX SOFTWARE LTD,OP/1811510," 11,641.00 "
http://statistics.data.gov.uk/id/local-authority/12UE,Huntingdonshire District Council,MD24,Hdc Recharge Invoices,206,Software,222796,19/12/2017,20/12/2017,CR031918,PHOENIX SOFTWARE LTD,OP/1811511," 11,950.80 "
http://statistics.data.gov.uk/id/local-authority/12UE,Huntingdonshire District Council,MD22,Ccity Recharge Invoices,206,Software,221954,06/12/2017,07/12/2017,CR424952,ROL SOLUTIONS LTD,5899," 12,838.00 "
http://statistics.data.gov.uk/id/local-authority/12UE,Huntingdonshire District Council,MU76,Finance,206,Software,222873,19/12/2017,19/12/2017,CR032921,ADVANCED BUSINESS SOLUTIONS,ARCMIN/99066050," 39,513.53 "
http://statistics.data.gov.uk/id/local-authority/12UE,Huntingdonshire District Council,PA11,Neighbourhood Planning,220,Printing (External),221894,05/12/2017,05/12/2017,CR416581,SCI PRINT LIMITED,3444, 447.00 
http://statistics.data.gov.uk/id/local-authority/12UE,Huntingdonshire District Council,LP90,Site & Centre Management,225,Stationery,221476,06/12/2017,06/12/2017,CR033423,MASKEARAID LTD,63513, 359.50 
http://statistics.data.gov.uk/id/local-authority/12UE,Huntingdonshire District Council,HB85,Benefits Management,231,Postage,222704,18/12/2017,18/12/2017,CR424061,WHISTL UK LTD,IN16PS17006552, 254.53 
http://statistics.data.gov.uk/id/local-authority/12UE,Huntingdonshire District Council,PA11,Neighbourhood Planning,231,Postage,221809,04/12/2017,05/12/2017,CR027083,ROYAL MAIL,9055584387, 323.64 
http://statistics.data.gov.uk/id/local-authority/12UE,Huntingdonshire District Council,MS01,Post Handling,231,Postage,221809,04/12/2017,05/12/2017,CR027083,ROYAL MAIL,9055584387, 324.18 
http://statistics.data.gov.uk/id/local-authority/12UE,Huntingdonshire District Council,HB85,Benefits Management,231,Postage,222412,13/12/2017,15/12/2017,CR424061,WHISTL UK LTD,IN16PS17006439, 403.10 
http://statistics.data.gov.uk/id/local-authority/12UE,Huntingdonshire District Council,HB85,Benefits Management,231,Postage,221807,04/12/2017,05/12/2017,CR424061,WHISTL UK LTD,IN16PS17006178, 523.89 
http://statistics.data.gov.uk/id/local-authority/12UE,Huntingdonshire District Council,HB85,Benefits Management,231,Postage,221808,04/12/2017,05/12/2017,CR424061,WHISTL UK LTD,IN16PS17006293, 539.45 
http://statistics.data.gov.uk/id/local-authority/12UE,Huntingdonshire District Council,CE90,Electoral Registration,231,Postage,221809,04/12/2017,05/12/2017,CR027083,ROYAL MAIL,9055584387, 579.50 
http://statistics.data.gov.uk/id/local-authority/12UE,Huntingdonshire District Council,CE90,Electoral Registration,231,Postage,222734,18/12/2017,18/12/2017,CR027083,ROYAL MAIL,9055667792, 581.59 
http://statistics.data.gov.uk/id/local-authority/12UE,Huntingdonshire District Council,MS01,Post Handling,231,Postage,222734,18/12/2017,18/12/2017,CR027083,ROYAL MAIL,9055667792, 699.77 
http://statistics.data.gov.uk/id/local-authority/12UE,Huntingdonshire District Council,MS01,Post Handling,231,Postage,50336,31/12/2017,25/01/2018,,,, 800.00 
http://statistics.data.gov.uk/id/local-authority/12UE,Huntingdonshire District Council,MS01,Post Handling,231,Postage,222376,12/12/2017,12/12/2017,CR027083,ROYAL MAIL,9055625818, 854.72 
http://statistics.data.gov.uk/id/local-authority/12UE,Huntingdonshire District Council,MP01,Printing,231,Postage,222415,13/12/2017,15/12/2017,CR478080,B & H DIGITAL LTD,27617, 898.02 
http://statistics.data.gov.uk/id/local-authority/12UE,Huntingdonshire District Council,MS01,Post Handling,231,Postage,222704,18/12/2017,18/12/2017,CR424061,WHISTL UK LTD,IN16PS17006552," 1,037.79 "
http://statistics.data.gov.uk/id/local-authority/12UE,Huntingdonshire District Council,MS01,Post Handling,231,Postage,222412,13/12/2017,15/12/2017,CR424061,WHISTL UK LTD,IN16PS17006439," 1,088.16 "
http://statistics.data.gov.uk/id/local-authority/12UE,Huntingdonshire District Council,MS01,Post Handling,231,Postage,221807,04/12/2017,05/12/2017,CR424061,WHISTL UK LTD,IN16PS17006178," 1,167.06 "
http://statistics.data.gov.uk/id/local-authority/12UE,Huntingdonshire District Council,MS01,Post Handling,231,Postage,221808,04/12/2017,05/12/2017,CR424061,WHISTL UK LTD,IN16PS17006293," 1,333.07 "
http://statistics.data.gov.uk/id/local-authority/12UE,Huntingdonshire District Council,MD20,Imd Shared Service,240,Telephone &Mobile Phonecharges,222827,19/12/2017,20/12/2017,CR033120,VIRGIN MEDIA BUSINESS,7.42878E+11," 1,130.26 "
http://statistics.data.gov.uk/id/local-authority/12UE,Huntingdonshire District Council,MD20,Imd Shared Service,240,Telephone &Mobile Phonecharges,50336,31/12/2017,25/01/2018,,,," 1,987.58 "
http://statistics.data.gov.uk/id/local-authority/12UE,Huntingdonshire District Council,TC90,Car Parks Operational Mgt,240,Telephone &Mobile Phonecharges,222011,06/12/2017,07/12/2017,CR422668,BEMROSE MOBILE LTD,," 4,226.16 "
http://statistics.data.gov.uk/id/local-authority/12UE,Huntingdonshire District Council,KC80,Cctv Shared Service Hosting,248,I T Line Rental,221985,13/12/2017,13/12/2017,CR455148,VIRGIN MEDIA BUSINESS/CPSN,923469-086A, 526.08 
http://statistics.data.gov.uk/id/local-authority/12UE,Huntingdonshire District Council,MD20,Imd Shared Service,248,I T Line Rental,222827,19/12/2017,20/12/2017,CR033120,VIRGIN MEDIA BUSINESS,7.42878E+11, 796.37 
http://statistics.data.gov.uk/id/local-authority/12UE,Huntingdonshire District Council,MD22,Ccity Recharge Invoices,248,I T Line Rental,222826,19/12/2017,20/12/2017,CR412057,VIRGIN MEDIA,930635-045B," 2,580.00 "
http://statistics.data.gov.uk/id/local-authority/12UE,Huntingdonshire District Council,MD23,Scdc Recharge Invoices,248,I T Line Rental,221980,06/12/2017,07/12/2017,CR455148,VIRGIN MEDIA BUSINESS/CPSN,923186-074A," 2,751.03 "
http://statistics.data.gov.uk/id/local-authority/12UE,Huntingdonshire District Council,MD22,Ccity Recharge Invoices,248,I T Line Rental,222406,13/12/2017,13/12/2017,CR412057,VIRGIN MEDIA,930635-044B," 3,000.00 "
http://statistics.data.gov.uk/id/local-authority/12UE,Huntingdonshire District Council,MD22,Ccity Recharge Invoices,248,I T Line Rental,222429,13/12/2017,13/12/2017,CR412057,VIRGIN MEDIA,930635-046B," 5,048.00 "
http://statistics.data.gov.uk/id/local-authority/12UE,Huntingdonshire District Council,MD20,Imd Shared Service,248,I T Line Rental,221985,13/12/2017,13/12/2017,CR455148,VIRGIN MEDIA BUSINESS/CPSN,923469-086A," 9,565.96 "
http://statistics.data.gov.uk/id/local-authority/12UE,Huntingdonshire District Council,MD22,Ccity Recharge Invoices,248,I T Line Rental,221989,06/12/2017,07/12/2017,CR455148,VIRGIN MEDIA BUSINESS/CPSN,930635-046A," 10,058.57 "
http://statistics.data.gov.uk/id/local-authority/12UE,Huntingdonshire District Council,CE90,Electoral Registration,250,Books & Publications,222907,19/12/2017,19/12/2017,CR453991,LEXISNEXIS,D1115177W," 1,304.00 "
http://statistics.data.gov.uk/id/local-authority/12UE,Huntingdonshire District Council,LQ21,Burgess Hall,255,Advertising/Promoting Services,222254,13/12/2017,14/12/2017,CR000072,LOCAL WORLD LTD,61707809, 300.00 
http://statistics.data.gov.uk/id/local-authority/12UE,Huntingdonshire District Council,LL01,Leisure Centre Corporate Mngmt,255,Advertising/Promoting Services,222250,13/12/2017,14/12/2017,CR480114,GLOBAL RADIO SERVICES LTD,1111703, 442.00 
http://statistics.data.gov.uk/id/local-authority/12UE,Huntingdonshire District Council,LL01,Leisure Centre Corporate Mngmt,255,Advertising/Promoting Services,222252,13/12/2017,14/12/2017,CR480114,GLOBAL RADIO SERVICES LTD,1111702, 499.99 
http://statistics.data.gov.uk/id/local-authority/12UE,Huntingdonshire District Council,CD90,Committee Management,255,Advertising/Promoting Services,618743,08/12/2017,08/12/2017,CR455662,IMPROVEMENT & DEVELOPMENT AGENCY (IDEA),, 550.00 
http://statistics.data.gov.uk/id/local-authority/12UE,Huntingdonshire District Council,LL01,Leisure Centre Corporate Mngmt,255,Advertising/Promoting Services,222251,13/12/2017,14/12/2017,CR480114,GLOBAL RADIO SERVICES LTD,1111700, 600.00 
http://statistics.data.gov.uk/id/local-authority/12UE,Huntingdonshire District Council,LQ21,Burgess Hall,255,Advertising/Promoting Services,221972,13/12/2017,14/12/2017,CR415764,ARCHANT HERTS & CAMBS,82795483, 706.33 
http://statistics.data.gov.uk/id/local-authority/12UE,Huntingdonshire District Council,LL01,Leisure Centre Corporate Mngmt,255,Advertising/Promoting Services,222249,13/12/2017,14/12/2017,CR480114,GLOBAL RADIO SERVICES LTD,1106332, 900.00 
http://statistics.data.gov.uk/id/local-authority/12UE,Huntingdonshire District Council,LL01,Leisure Centre Corporate Mngmt,255,Advertising/Promoting Services,50336,31/12/2017,25/01/2018,,,, 925.00 
http://statistics.data.gov.uk/id/local-authority/12UE,Huntingdonshire District Council,LL01,Leisure Centre Corporate Mngmt,255,Advertising/Promoting Services,222253,13/12/2017,14/12/2017,CR480114,GLOBAL RADIO SERVICES LTD,1111704," 1,400.00 "
http://statistics.data.gov.uk/id/local-authority/12UE,Huntingdonshire District Council,LL01,Leisure Centre Corporate Mngmt,255,Advertising/Promoting Services,218595,13/12/2017,14/12/2017,CR423440,RIGHT MARKET LTD,757," 2,610.00 "
http://statistics.data.gov.uk/id/local-authority/12UE,Huntingdonshire District Council,QD04,Commercial Investment Strategy,260,Ins (Service Related),222371,12/12/2017,12/12/2017,CR480345,JLT SPECIALITY LTD,CE005714, 618.43 
http://statistics.data.gov.uk/id/local-authority/12UE,Huntingdonshire District Council,MU69,Customer Service Centres,295,Other Office Expenses,222699,18/12/2017,18/12/2017,CR422369,MEYER SCOTT RECRUITMENT LIMITED,36025, 329.75 
http://statistics.data.gov.uk/id/local-authority/12UE,Huntingdonshire District Council,MU69,Customer Service Centres,300,Building Construction,222291,20/12/2017,20/12/2017,CR424641,FOCUS CONSULTANTS 2010 LLP,1179, 500.00 
http://statistics.data.gov.uk/id/local-authority/12UE,Huntingdonshire District Council,MU69,Customer Service Centres,300,Building Construction,222290,19/12/2017,19/12/2017,CR424641,FOCUS CONSULTANTS 2010 LLP,1174," 1,110.00 "
http://statistics.data.gov.uk/id/local-authority/12UE,Huntingdonshire District Council,HF01,Mobile Home Park,303,Building Mtce,223142,28/12/2017,28/12/2017,CR000363,B. S. GRAVES ELECTRICAL LTD,25664, 254.75 
http://statistics.data.gov.uk/id/local-authority/12UE,Huntingdonshire District Council,QC01,Commercial Properties,303,Building Mtce,222259,08/12/2017,08/12/2017,CR424965,4SITE CONSULTING LIMITED,1230-28924, 258.00 
http://statistics.data.gov.uk/id/local-authority/12UE,Huntingdonshire District Council,LQ90,Site & Centre Management,303,Building Mtce,222351,13/12/2017,14/12/2017,CR422887,RICHARD SISTROM PAINTING & DECORATING,29, 260.00 
http://statistics.data.gov.uk/id/local-authority/12UE,Huntingdonshire District Council,LQ90,Site & Centre Management,303,Building Mtce,221803,06/12/2017,06/12/2017,CR423380,NJL PROPERTY SOLUTIONS,OLSI0112, 285.80 
http://statistics.data.gov.uk/id/local-authority/12UE,Huntingdonshire District Council,QD01,Industrial Properties,303,Building Mtce,222265,08/12/2017,08/12/2017,CR424965,4SITE CONSULTING LIMITED,1230-28885, 295.00 
http://statistics.data.gov.uk/id/local-authority/12UE,Huntingdonshire District Council,LK90,Site & Centre Management,303,Building Mtce,221790,06/12/2017,06/12/2017,CR455707,BH DOORS & ENGINEERING LTD,23098, 302.55 
http://statistics.data.gov.uk/id/local-authority/12UE,Huntingdonshire District Council,LN90,Site & Centre Management,303,Building Mtce,221391,13/12/2017,14/12/2017,CR424623,THE POOL & SPA SPECIALISTS LTD,8212, 306.00 
http://statistics.data.gov.uk/id/local-authority/12UE,Huntingdonshire District Council,LQ90,Site & Centre Management,303,Building Mtce,222350,13/12/2017,14/12/2017,CR422887,RICHARD SISTROM PAINTING & DECORATING,30, 320.00 
http://statistics.data.gov.uk/id/local-authority/12UE,Huntingdonshire District Council,MB41,Eastfield House,303,Building Mtce,222437,19/12/2017,19/12/2017,CR479202,DMS HOME IMPROVEMENTS & ELECTRICAL,244, 345.00 
http://statistics.data.gov.uk/id/local-authority/12UE,Huntingdonshire District Council,QD03,St Ives Enterprise Centre,303,Building Mtce,222262,08/12/2017,08/12/2017,CR424965,4SITE CONSULTING LIMITED,1230-28916, 350.00 
http://statistics.data.gov.uk/id/local-authority/12UE,Huntingdonshire District Council,LR90,Site & Centre Management,303,Building Mtce,222840,20/12/2017,20/12/2017,CR404059,MCINTYRE LEISURE,INV-19198, 376.50 
http://statistics.data.gov.uk/id/local-authority/12UE,Huntingdonshire District Council,QD01,Industrial Properties,303,Building Mtce,222258,08/12/2017,08/12/2017,CR424965,4SITE CONSULTING LIMITED,1230-28884, 380.00 
http://statistics.data.gov.uk/id/local-authority/12UE,Huntingdonshire District Council,QC01,Commercial Properties,303,Building Mtce,222264,08/12/2017,08/12/2017,CR424965,4SITE CONSULTING LIMITED,1230-28913, 385.00 
http://statistics.data.gov.uk/id/local-authority/12UE,Huntingdonshire District Council,QD01,Industrial Properties,303,Building Mtce,222263,08/12/2017,08/12/2017,CR424965,4SITE CONSULTING LIMITED,1230-28915, 395.00 
http://statistics.data.gov.uk/id/local-authority/12UE,Huntingdonshire District Council,LP90,Site & Centre Management,303,Building Mtce,222493,20/12/2017,20/12/2017,CR422788,K SIGNS,INV-4204, 400.00 
http://statistics.data.gov.uk/id/local-authority/12UE,Huntingdonshire District Council,LL10,The Club Alconbury Weald,303,Building Mtce,221901,06/12/2017,06/12/2017,CR424041,BRIDGE FIBRE LIMITED,34403, 475.00 
http://statistics.data.gov.uk/id/local-authority/12UE,Huntingdonshire District Council,LP90,Site & Centre Management,303,Building Mtce,222798,20/12/2017,20/12/2017,CR422708,SKL PROPERTY SERVICES,45, 600.00 
http://statistics.data.gov.uk/id/local-authority/12UE,Huntingdonshire District Council,MB41,Eastfield House,303,Building Mtce,220816,06/12/2017,07/12/2017,CR415341,CAMBRIDGE DOOR SERVICES,7072, 653.50 
http://statistics.data.gov.uk/id/local-authority/12UE,Huntingdonshire District Council,TC72,St Neots Market Square Ccc,303,Building Mtce,221216,06/12/2017,07/12/2017,CR423524,NOVUS COMPLIANCE SERVICES LTD,INV-4956, 679.00 
http://statistics.data.gov.uk/id/local-authority/12UE,Huntingdonshire District Council,MH20,Health & Safety Contract,303,Building Mtce,222370,14/12/2017,14/12/2017,CR424984,SAFETY ROCKS,1199, 687.50 
http://statistics.data.gov.uk/id/local-authority/12UE,Huntingdonshire District Council,LQ90,Site & Centre Management,303,Building Mtce,222498,20/12/2017,20/12/2017,CR028041,ROGER WILSON ELECTRONICS,9901, 690.90 
http://statistics.data.gov.uk/id/local-authority/12UE,Huntingdonshire District Council,L213,Ol Huntingdon Expansion,303,Building Mtce,619040,20/12/2017,20/12/2017,CR403107,PERSONAL DATA REDACTED,PERSONAL DATA REDACTED, 710.00 
http://statistics.data.gov.uk/id/local-authority/12UE,Huntingdonshire District Council,QC01,Commercial Properties,303,Building Mtce,221215,06/12/2017,07/12/2017,CR455166,K & M LIGHTING SERVICES LTD,3856, 715.00 
http://statistics.data.gov.uk/id/local-authority/12UE,Huntingdonshire District Council,LS90,Site & Centre Management,303,Building Mtce,221089,13/12/2017,14/12/2017,CR422914,STERLING HYDROTECH LTD,29467, 726.00 
http://statistics.data.gov.uk/id/local-authority/12UE,Huntingdonshire District Council,LP90,Site & Centre Management,303,Building Mtce,222244,13/12/2017,14/12/2017,CR479717,CAMBRIDGE FLAT ROOFING,6787, 750.00 
http://statistics.data.gov.uk/id/local-authority/12UE,Huntingdonshire District Council,L159,Hunt Leis C -Gen Improve (Cs),303,Building Mtce,222369,14/12/2017,14/12/2017,CR422450,ROOFING CONTRACTORS (CAMBRIDGE) LTD,8492/22111, 804.82 
http://statistics.data.gov.uk/id/local-authority/12UE,Huntingdonshire District Council,LP90,Site & Centre Management,303,Building Mtce,221925,06/12/2017,06/12/2017,CR425043,ENVIRONMENTAL DESIGN LTD,460, 862.28 
http://statistics.data.gov.uk/id/local-authority/12UE,Huntingdonshire District Council,LQ90,Site & Centre Management,303,Building Mtce,222358,13/12/2017,14/12/2017,CR028041,ROGER WILSON ELECTRONICS,9902, 885.00 
http://statistics.data.gov.uk/id/local-authority/12UE,Huntingdonshire District Council,LQ21,Burgess Hall,303,Building Mtce,222498,20/12/2017,20/12/2017,CR028041,ROGER WILSON ELECTRONICS,9901," 1,429.10 "
http://statistics.data.gov.uk/id/local-authority/12UE,Huntingdonshire District Council,L305,Sawtry L C - Gen Improve (Cs),303,Building Mtce,222227,13/12/2017,14/12/2017,CR479717,CAMBRIDGE FLAT ROOFING,6789," 1,540.00 "
http://statistics.data.gov.uk/id/local-authority/12UE,Huntingdonshire District Council,LE01,Paxton Pits,303,Building Mtce,220421,20/12/2017,20/12/2017,CR424694,MIRAMAR ENGINEERING LTD,#001250," 1,553.06 "
http://statistics.data.gov.uk/id/local-authority/12UE,Huntingdonshire District Council,MB30,Efh Fire Damage Oct.2017,303,Building Mtce,221078,19/12/2017,19/12/2017,CR424739,DATACENTRE UK,401333," 1,768.00 "
http://statistics.data.gov.uk/id/local-authority/12UE,Huntingdonshire District Council,QD04,Commercial Investment Strategy,303,Building Mtce,223108,21/12/2017,21/12/2017,CR425077,WORKMAN LLP,85100/259," 1,915.50 "
http://statistics.data.gov.uk/id/local-authority/12UE,Huntingdonshire District Council,QD04,Commercial Investment Strategy,303,Building Mtce,223107,21/12/2017,21/12/2017,CR425077,WORKMAN LLP,85100/254," 2,093.75 "
http://statistics.data.gov.uk/id/local-authority/12UE,Huntingdonshire District Council,MB41,Eastfield House,303,Building Mtce,220418,19/12/2017,20/12/2017,CR424694,MIRAMAR ENGINEERING LTD,#001262," 2,100.00 "
http://statistics.data.gov.uk/id/local-authority/12UE,Huntingdonshire District Council,LN90,Site & Centre Management,303,Building Mtce,221797,13/12/2017,14/12/2017,CR422887,RICHARD SISTROM PAINTING & DECORATING,26," 3,680.00 "
http://statistics.data.gov.uk/id/local-authority/12UE,Huntingdonshire District Council,L305,Sawtry L C - Gen Improve (Cs),303,Building Mtce,222226,13/12/2017,14/12/2017,CR479717,CAMBRIDGE FLAT ROOFING,6749," 4,554.16 "
http://statistics.data.gov.uk/id/local-authority/12UE,Huntingdonshire District Council,L213,Ol Huntingdon Expansion,303,Building Mtce,222086,13/12/2017,15/12/2017,CR424970,ARW SPECIALIST BUILDING CONTRACTORS LTD,3028," 59,972.58 "
http://statistics.data.gov.uk/id/local-authority/12UE,Huntingdonshire District Council,LK29,Outdoor Sports,351,Grounds Mtce Contractors,221605,06/12/2017,06/12/2017,CR422848,ROBINSON LOW FRANCIS LLP,SIN047280, 525.00 
http://statistics.data.gov.uk/id/local-authority/12UE,Huntingdonshire District Council,MB01,Pathfinder House,380,Plant & Equipment Maintenance,220154,19/12/2017,20/12/2017,CR424694,MIRAMAR ENGINEERING LTD,#001260," 1,700.00 "
http://statistics.data.gov.uk/id/local-authority/12UE,Huntingdonshire District Council,KA09,Yaxley Community Info Centre,410,Rent,222665,14/12/2017,14/12/2017,CR412242,WHITE COMMERCIAL SURVEYORS LTD,5021, 885.64 
http://statistics.data.gov.uk/id/local-authority/12UE,Huntingdonshire District Council,KA09,Yaxley Community Info Centre,410,Rent,222666,14/12/2017,14/12/2017,CR412242,WHITE COMMERCIAL SURVEYORS LTD,5207, 885.64 
http://statistics.data.gov.uk/id/local-authority/12UE,Huntingdonshire District Council,KA09,Yaxley Community Info Centre,410,Rent,223077,20/12/2017,20/12/2017,CR412242,WHITE COMMERCIAL SURVEYORS LTD,5212, 885.64 
http://statistics.data.gov.uk/id/local-authority/12UE,Huntingdonshire District Council,QD01,Industrial Properties,410,Rent,50336,31/12/2017,25/01/2018,,,," 30,000.00 "
http://statistics.data.gov.uk/id/local-authority/12UE,Huntingdonshire District Council,D014,Refit Buildings,412,Service Charges,222049,20/12/2017,20/12/2017,CR424762,BOUYGUES E & S F M UK LTD,1349031102," 86,239.27 "
http://statistics.data.gov.uk/id/local-authority/12UE,Huntingdonshire District Council,LV06,Parks & Open Spaces,420,Electricity,222764,19/12/2017,19/12/2017,CR407130,SWALEC,21718046, 264.32 
http://statistics.data.gov.uk/id/local-authority/12UE,Huntingdonshire District Council,MB28,St Ives Gatehouses/Octagon,420,Electricity,222765,19/12/2017,19/12/2017,CR407130,SWALEC,801225389, 285.57 
http://statistics.data.gov.uk/id/local-authority/12UE,Huntingdonshire District Council,TB02,St Ives Bus Station,420,Electricity,619089,20/12/2017,20/12/2017,CR000701,ST IVES TOWN COUNCIL,1667, 316.42 
http://statistics.data.gov.uk/id/local-authority/12UE,Huntingdonshire District Council,LD90,Hinchingbrooke Park Management,420,Electricity,222041,07/12/2017,07/12/2017,CR407130,SWALEC,311226373, 420.90 
http://statistics.data.gov.uk/id/local-authority/12UE,Huntingdonshire District Council,QD03,St Ives Enterprise Centre,420,Electricity,222387,12/12/2017,12/12/2017,CR407130,SWALEC,911427624/0012, 513.87 
http://statistics.data.gov.uk/id/local-authority/12UE,Huntingdonshire District Council,TC87,St Ives Cattle Market (Hw),420,Electricity,222038,07/12/2017,07/12/2017,CR407130,SWALEC,371226896, 700.01 
http://statistics.data.gov.uk/id/local-authority/12UE,Huntingdonshire District Council,MB01,Pathfinder House,420,Electricity,222898,20/12/2017,20/12/2017,CR000363,B. S. GRAVES ELECTRICAL LTD,25435, 858.00 
http://statistics.data.gov.uk/id/local-authority/12UE,Huntingdonshire District Council,TC46,Huntingdon Multi-Storey,420,Electricity,221834,07/12/2017,07/12/2017,CR407130,SWALEC,441567103," 1,355.88 "
http://statistics.data.gov.uk/id/local-authority/12UE,Huntingdonshire District Council,LP01,Swimming,420,Electricity,222760,19/12/2017,19/12/2017,CR407130,SWALEC,921718102," 1,614.04 "
http://statistics.data.gov.uk/id/local-authority/12UE,Huntingdonshire District Council,LS90,Site & Centre Management,420,Electricity,222761,19/12/2017,19/12/2017,CR407130,SWALEC,211687030," 2,502.64 "
http://statistics.data.gov.uk/id/local-authority/12UE,Huntingdonshire District Council,LR90,Site & Centre Management,420,Electricity,222763,19/12/2017,19/12/2017,CR407130,SWALEC,461717524," 2,805.11 "
http://statistics.data.gov.uk/id/local-authority/12UE,Huntingdonshire District Council,LP01,Swimming,420,Electricity,222735,19/12/2017,19/12/2017,CR455940,HAVEN POWER LTD,65916," 3,553.85 "
http://statistics.data.gov.uk/id/local-authority/12UE,Huntingdonshire District Council,MB41,Eastfield House,420,Electricity,222733,19/12/2017,19/12/2017,CR455940,HAVEN POWER LTD,65924," 4,127.86 "
http://statistics.data.gov.uk/id/local-authority/12UE,Huntingdonshire District Council,LK90,Site & Centre Management,420,Electricity,222732,19/12/2017,19/12/2017,CR455940,HAVEN POWER LTD,95922," 4,402.39 "
http://statistics.data.gov.uk/id/local-authority/12UE,Huntingdonshire District Council,LN01,Swimming,420,Electricity,222736,19/12/2017,19/12/2017,CR455940,HAVEN POWER LTD,65914," 7,545.53 "
http://statistics.data.gov.uk/id/local-authority/12UE,Huntingdonshire District Council,MB01,Pathfinder House,420,Electricity,222737,19/12/2017,19/12/2017,CR455940,HAVEN POWER LTD,65912," 9,245.03 "
http://statistics.data.gov.uk/id/local-authority/12UE,Huntingdonshire District Council,LQ90,Site & Centre Management,420,Electricity,222731,19/12/2017,19/12/2017,CR455940,HAVEN POWER LTD,65919," 9,393.22 "
http://statistics.data.gov.uk/id/local-authority/12UE,Huntingdonshire District Council,LK90,Site & Centre Management,421,Gas,222750,19/12/2017,19/12/2017,CR416430,E-ON ENERGY,12489089510, 470.74 
http://statistics.data.gov.uk/id/local-authority/12UE,Huntingdonshire District Council,LP90,Site & Centre Management,421,Gas,222749,19/12/2017,19/12/2017,CR416430,E-ON ENERGY,12489088970, 535.88 
http://statistics.data.gov.uk/id/local-authority/12UE,Huntingdonshire District Council,MB41,Eastfield House,421,Gas,222751,19/12/2017,19/12/2017,CR416430,E-ON ENERGY,12489089940, 592.47 
http://statistics.data.gov.uk/id/local-authority/12UE,Huntingdonshire District Council,LS90,Site & Centre Management,421,Gas,222748,19/12/2017,19/12/2017,CR416430,E-ON ENERGY,12489088700," 1,198.17 "
http://statistics.data.gov.uk/id/local-authority/12UE,Huntingdonshire District Council,LR90,Site & Centre Management,421,Gas,222752,19/12/2017,19/12/2017,CR416430,E-ON ENERGY,12489090790," 1,212.50 "
http://statistics.data.gov.uk/id/local-authority/12UE,Huntingdonshire District Council,MB01,Pathfinder House,421,Gas,222754,19/12/2017,19/12/2017,CR416430,E-ON ENERGY,13313569100," 1,350.15 "
http://statistics.data.gov.uk/id/local-authority/12UE,Huntingdonshire District Council,LP01,Swimming,421,Gas,222739,19/12/2017,19/12/2017,CR416430,E-ON ENERGY,12489088110," 1,640.38 "
http://statistics.data.gov.uk/id/local-authority/12UE,Huntingdonshire District Council,LN01,Swimming,421,Gas,222740,19/12/2017,19/12/2017,CR416430,E-ON ENERGY,12489088380," 3,053.32 "
http://statistics.data.gov.uk/id/local-authority/12UE,Huntingdonshire District Council,LQ90,Site & Centre Management,421,Gas,222753,19/12/2017,19/12/2017,CR416430,E-ON ENERGY,12489090950," 3,089.16 "
http://statistics.data.gov.uk/id/local-authority/12UE,Huntingdonshire District Council,LP90,Site & Centre Management,432,Water & Sewerage,221075,06/12/2017,07/12/2017,CR000071,"WAVE, ANGLIAN WATER BUSINESS",290212101," 2,158.56 "
http://statistics.data.gov.uk/id/local-authority/12UE,Huntingdonshire District Council,MB01,Pathfinder House,432,Water & Sewerage,221076,06/12/2017,07/12/2017,CR000071,"WAVE, ANGLIAN WATER BUSINESS",231422001," 2,481.58 "
http://statistics.data.gov.uk/id/local-authority/12UE,Huntingdonshire District Council,LK90,Site & Centre Management,432,Water & Sewerage,221074,06/12/2017,07/12/2017,CR000071,"WAVE, ANGLIAN WATER BUSINESS",398853000," 8,049.44 "
http://statistics.data.gov.uk/id/local-authority/12UE,Huntingdonshire District Council,LQ90,Site & Centre Management,440,Building Cleaning,222746,21/12/2017,21/12/2017,CR423413,HI-SPEC FACILITIES SERVICES PLC,1077,-274.12 
http://statistics.data.gov.uk/id/local-authority/12UE,Huntingdonshire District Council,LD90,Hinchingbrooke Park Management,440,Building Cleaning,222274,19/12/2017,19/12/2017,CR406985,ECOCLEEN SERVICES LIMITED,INV566859, 434.69 
http://statistics.data.gov.uk/id/local-authority/12UE,Huntingdonshire District Council,LR90,Site & Centre Management,440,Building Cleaning,218225,21/12/2017,21/12/2017,CR423413,HI-SPEC FACILITIES SERVICES PLC,33473, 515.56 
http://statistics.data.gov.uk/id/local-authority/12UE,Huntingdonshire District Council,LR90,Site & Centre Management,440,Building Cleaning,220576,21/12/2017,21/12/2017,CR423413,HI-SPEC FACILITIES SERVICES PLC,33718, 515.56 
http://statistics.data.gov.uk/id/local-authority/12UE,Huntingdonshire District Council,LR90,Site & Centre Management,440,Building Cleaning,223092,21/12/2017,21/12/2017,CR423413,HI-SPEC FACILITIES SERVICES PLC,33954, 515.56 
http://statistics.data.gov.uk/id/local-authority/12UE,Huntingdonshire District Council,LS90,Site & Centre Management,440,Building Cleaning,218225,21/12/2017,21/12/2017,CR423413,HI-SPEC FACILITIES SERVICES PLC,33473, 538.99 
http://statistics.data.gov.uk/id/local-authority/12UE,Huntingdonshire District Council,LS90,Site & Centre Management,440,Building Cleaning,220576,21/12/2017,21/12/2017,CR423413,HI-SPEC FACILITIES SERVICES PLC,33718, 538.99 
http://statistics.data.gov.uk/id/local-authority/12UE,Huntingdonshire District Council,LS90,Site & Centre Management,440,Building Cleaning,223092,21/12/2017,21/12/2017,CR423413,HI-SPEC FACILITIES SERVICES PLC,33954, 538.99 
http://statistics.data.gov.uk/id/local-authority/12UE,Huntingdonshire District Council,LP90,Site & Centre Management,440,Building Cleaning,218225,21/12/2017,21/12/2017,CR423413,HI-SPEC FACILITIES SERVICES PLC,33473, 656.16 
http://statistics.data.gov.uk/id/local-authority/12UE,Huntingdonshire District Council,LP90,Site & Centre Management,440,Building Cleaning,220576,21/12/2017,21/12/2017,CR423413,HI-SPEC FACILITIES SERVICES PLC,33718, 656.16 
http://statistics.data.gov.uk/id/local-authority/12UE,Huntingdonshire District Council,LP90,Site & Centre Management,440,Building Cleaning,223092,21/12/2017,21/12/2017,CR423413,HI-SPEC FACILITIES SERVICES PLC,33954, 656.16 
http://statistics.data.gov.uk/id/local-authority/12UE,Huntingdonshire District Council,TB01,Huntingdon Bus Station,440,Building Cleaning,220570,06/12/2017,07/12/2017,CR415822,BEEBYS LIMITED,59951," 1,018.31 "
http://statistics.data.gov.uk/id/local-authority/12UE,Huntingdonshire District Council,TB01,Huntingdon Bus Station,440,Building Cleaning,222292,19/12/2017,19/12/2017,CR415822,BEEBYS LIMITED,60153," 1,018.31 "
http://statistics.data.gov.uk/id/local-authority/12UE,Huntingdonshire District Council,MB41,Eastfield House,440,Building Cleaning,218225,21/12/2017,21/12/2017,CR423413,HI-SPEC FACILITIES SERVICES PLC,33473," 1,171.71 "
http://statistics.data.gov.uk/id/local-authority/12UE,Huntingdonshire District Council,MB41,Eastfield House,440,Building Cleaning,220576,21/12/2017,21/12/2017,CR423413,HI-SPEC FACILITIES SERVICES PLC,33718," 1,171.71 "
http://statistics.data.gov.uk/id/local-authority/12UE,Huntingdonshire District Council,MB41,Eastfield House,440,Building Cleaning,223092,21/12/2017,21/12/2017,CR423413,HI-SPEC FACILITIES SERVICES PLC,33954," 1,171.71 "
http://statistics.data.gov.uk/id/local-authority/12UE,Huntingdonshire District Council,LK90,Site & Centre Management,440,Building Cleaning,218225,21/12/2017,21/12/2017,CR423413,HI-SPEC FACILITIES SERVICES PLC,33473," 1,663.83 "
http://statistics.data.gov.uk/id/local-authority/12UE,Huntingdonshire District Council,LK90,Site & Centre Management,440,Building Cleaning,220576,21/12/2017,21/12/2017,CR423413,HI-SPEC FACILITIES SERVICES PLC,33718," 1,663.83 "
http://statistics.data.gov.uk/id/local-authority/12UE,Huntingdonshire District Council,LK90,Site & Centre Management,440,Building Cleaning,223092,21/12/2017,21/12/2017,CR423413,HI-SPEC FACILITIES SERVICES PLC,33954," 1,663.83 "
http://statistics.data.gov.uk/id/local-authority/12UE,Huntingdonshire District Council,LN90,Site & Centre Management,440,Building Cleaning,218225,21/12/2017,21/12/2017,CR423413,HI-SPEC FACILITIES SERVICES PLC,33473," 1,781.00 "
http://statistics.data.gov.uk/id/local-authority/12UE,Huntingdonshire District Council,LN90,Site & Centre Management,440,Building Cleaning,220576,21/12/2017,21/12/2017,CR423413,HI-SPEC FACILITIES SERVICES PLC,33718," 1,781.00 "
http://statistics.data.gov.uk/id/local-authority/12UE,Huntingdonshire District Council,LN90,Site & Centre Management,440,Building Cleaning,223092,21/12/2017,21/12/2017,CR423413,HI-SPEC FACILITIES SERVICES PLC,33954," 1,781.00 "
http://statistics.data.gov.uk/id/local-authority/12UE,Huntingdonshire District Council,LQ90,Site & Centre Management,440,Building Cleaning,218225,21/12/2017,21/12/2017,CR423413,HI-SPEC FACILITIES SERVICES PLC,33473," 2,296.56 "
http://statistics.data.gov.uk/id/local-authority/12UE,Huntingdonshire District Council,LQ90,Site & Centre Management,440,Building Cleaning,220576,21/12/2017,21/12/2017,CR423413,HI-SPEC FACILITIES SERVICES PLC,33718," 2,296.56 "
http://statistics.data.gov.uk/id/local-authority/12UE,Huntingdonshire District Council,LQ90,Site & Centre Management,440,Building Cleaning,223092,21/12/2017,21/12/2017,CR423413,HI-SPEC FACILITIES SERVICES PLC,33954," 2,296.56 "
http://statistics.data.gov.uk/id/local-authority/12UE,Huntingdonshire District Council,MB01,Pathfinder House,440,Building Cleaning,218225,21/12/2017,21/12/2017,CR423413,HI-SPEC FACILITIES SERVICES PLC,33473," 3,280.80 "
http://statistics.data.gov.uk/id/local-authority/12UE,Huntingdonshire District Council,MB01,Pathfinder House,440,Building Cleaning,220576,21/12/2017,21/12/2017,CR423413,HI-SPEC FACILITIES SERVICES PLC,33718," 3,280.80 "
http://statistics.data.gov.uk/id/local-authority/12UE,Huntingdonshire District Council,MB01,Pathfinder House,440,Building Cleaning,223092,21/12/2017,21/12/2017,CR423413,HI-SPEC FACILITIES SERVICES PLC,33954," 3,280.80 "
http://statistics.data.gov.uk/id/local-authority/12UE,Huntingdonshire District Council,MB30,Efh Fire Damage Oct.2017,440,Building Cleaning,223075,28/12/2017,28/12/2017,CR424992,BELFOR,PSI17-010780," 7,773.92 "
http://statistics.data.gov.uk/id/local-authority/12UE,Huntingdonshire District Council,LN90,Site & Centre Management,443,Cleaning Materials,222044,13/12/2017,14/12/2017,CR033423,MASKEARAID LTD,63668, 262.46 
http://statistics.data.gov.uk/id/local-authority/12UE,Huntingdonshire District Council,LN90,Site & Centre Management,443,Cleaning Materials,221784,13/12/2017,14/12/2017,CR400700,LYRECO UK LTD,6101869468, 281.58 
http://statistics.data.gov.uk/id/local-authority/12UE,Huntingdonshire District Council,MB01,Pathfinder House,443,Cleaning Materials,221211,06/12/2017,07/12/2017,CR033423,MASKEARAID LTD,63469, 654.73 
http://statistics.data.gov.uk/id/local-authority/12UE,Huntingdonshire District Council,MB01,Pathfinder House,443,Cleaning Materials,222909,28/12/2017,28/12/2017,CR033423,MASKEARAID LTD,63693, 754.79 
http://statistics.data.gov.uk/id/local-authority/12UE,Huntingdonshire District Council,LS90,Site & Centre Management,450,Fire & Security,222695,20/12/2017,20/12/2017,CR455470,NEW FLAME,130568, 575.00 
http://statistics.data.gov.uk/id/local-authority/12UE,Huntingdonshire District Council,LQ90,Site & Centre Management,450,Fire & Security,222005,13/12/2017,14/12/2017,CR000201,ABEL ALARM COMPANY LTD,991182843," 1,066.00 "
http://statistics.data.gov.uk/id/local-authority/12UE,Huntingdonshire District Council,LR90,Site & Centre Management,450,Fire & Security,221930,06/12/2017,06/12/2017,CR406826,HONEYWELL NOVAR SYSTEMS,7080659091," 1,336.76 "
http://statistics.data.gov.uk/id/local-authority/12UE,Huntingdonshire District Council,LQ90,Site & Centre Management,500,Equipment,222852,20/12/2017,20/12/2017,CR478866,KONICA MINOLTA,1134855657, 261.92 
http://statistics.data.gov.uk/id/local-authority/12UE,Huntingdonshire District Council,EG06,Grounds Maintenance,500,Equipment,221420,06/12/2017,07/12/2017,CR000141,A C COMMERCIALS,278192I, 322.91 
http://statistics.data.gov.uk/id/local-authority/12UE,Huntingdonshire District Council,EG06,Grounds Maintenance,500,Equipment,221420,06/12/2017,07/12/2017,CR000141,A C COMMERCIALS,278192I, 322.91 
http://statistics.data.gov.uk/id/local-authority/12UE,Huntingdonshire District Council,EG06,Grounds Maintenance,500,Equipment,221420,06/12/2017,07/12/2017,CR000141,A C COMMERCIALS,278192I, 322.91 
http://statistics.data.gov.uk/id/local-authority/12UE,Huntingdonshire District Council,EG06,Grounds Maintenance,500,Equipment,221420,06/12/2017,07/12/2017,CR000141,A C COMMERCIALS,278192I, 322.92 
http://statistics.data.gov.uk/id/local-authority/12UE,Huntingdonshire District Council,LR01,Swimming,500,Equipment,221386,06/12/2017,06/12/2017,CR028595,J P LENNARD LTD,873020, 324.23 
http://statistics.data.gov.uk/id/local-authority/12UE,Huntingdonshire District Council,LQ20,Hospitality,500,Equipment,221553,06/12/2017,06/12/2017,CR412311,NISBETS,15853449, 361.99 
http://statistics.data.gov.uk/id/local-authority/12UE,Huntingdonshire District Council,ES01,Street Cleansing,500,Equipment,221080,06/12/2017,07/12/2017,CR025706,AEBI SCHMIDT,60233154, 403.22 
http://statistics.data.gov.uk/id/local-authority/12UE,Huntingdonshire District Council,LQ10,Indoor Sports,500,Equipment,222514,14/12/2017,14/12/2017,CR422328,SKATERS,131214, 476.00 
http://statistics.data.gov.uk/id/local-authority/12UE,Huntingdonshire District Council,EG06,Grounds Maintenance,500,Equipment,221886,06/12/2017,07/12/2017,CR422159,GROUNDSMAN,43102, 512.81 
http://statistics.data.gov.uk/id/local-authority/12UE,Huntingdonshire District Council,EG06,Grounds Maintenance,500,Equipment,221871,06/12/2017,07/12/2017,CR000261,ERNEST DOE & SONS,711058," 1,690.00 "
http://statistics.data.gov.uk/id/local-authority/12UE,Huntingdonshire District Council,LK29,Outdoor Sports,500,Equipment,222363,13/12/2017,14/12/2017,CR416142,MARK HARROD LTD,35272," 5,906.00 "
http://statistics.data.gov.uk/id/local-authority/12UE,Huntingdonshire District Council,LP90,Site & Centre Management,507,Equipment Hire,221794,13/12/2017,14/12/2017,CR424993,THX LTD,127996, 434.70 
http://statistics.data.gov.uk/id/local-authority/12UE,Huntingdonshire District Council,KC80,Cctv Shared Service Hosting,511,Equipment Maintenance,222521,14/12/2017,14/12/2017,CR027775,QUADRANT SECURITY GROUP,SCR001852,"-9,224.52 "
http://statistics.data.gov.uk/id/local-authority/12UE,Huntingdonshire District Council,KC80,Cctv Shared Service Hosting,511,Equipment Maintenance,222519,14/12/2017,14/12/2017,CR027775,QUADRANT SECURITY GROUP,SCR001853,"-5,367.86 "
http://statistics.data.gov.uk/id/local-authority/12UE,Huntingdonshire District Council,LN90,Site & Centre Management,511,Equipment Maintenance,222009,13/12/2017,14/12/2017,CR003972,GARNER MEDICAL LTD,GM16010, 301.00 
http://statistics.data.gov.uk/id/local-authority/12UE,Huntingdonshire District Council,MU95,Vehicle Maintenance,511,Equipment Maintenance,221890,06/12/2017,07/12/2017,CR404076,HQ FORKLIFTS LTD,65701, 321.26 
http://statistics.data.gov.uk/id/local-authority/12UE,Huntingdonshire District Council,MD22,Ccity Recharge Invoices,511,Equipment Maintenance,221970,06/12/2017,07/12/2017,CR411949,PCF,135216, 395.00 
http://statistics.data.gov.uk/id/local-authority/12UE,Huntingdonshire District Council,LP90,Site & Centre Management,511,Equipment Maintenance,221800,06/12/2017,06/12/2017,CR478074,DCRS LTD,221276, 434.00 
http://statistics.data.gov.uk/id/local-authority/12UE,Huntingdonshire District Council,MD22,Ccity Recharge Invoices,511,Equipment Maintenance,222808,19/12/2017,20/12/2017,CR425031,CAPITA MANAGED IT SOLUTIONS,6077043520, 611.29 
http://statistics.data.gov.uk/id/local-authority/12UE,Huntingdonshire District Council,MD22,Ccity Recharge Invoices,511,Equipment Maintenance,222440,13/12/2017,13/12/2017,CR424807,Q ASSOCIATES LIMITED,44510, 709.89 
http://statistics.data.gov.uk/id/local-authority/12UE,Huntingdonshire District Council,KC80,Cctv Shared Service Hosting,511,Equipment Maintenance,221902,05/12/2017,07/12/2017,CR027775,QUADRANT SECURITY GROUP,SIN085283, 796.00 
http://statistics.data.gov.uk/id/local-authority/12UE,Huntingdonshire District Council,MD22,Ccity Recharge Invoices,511,Equipment Maintenance,222808,19/12/2017,20/12/2017,CR425031,CAPITA MANAGED IT SOLUTIONS,6077043520, 837.57 
http://statistics.data.gov.uk/id/local-authority/12UE,Huntingdonshire District Council,MD22,Ccity Recharge Invoices,511,Equipment Maintenance,222808,19/12/2017,20/12/2017,CR425031,CAPITA MANAGED IT SOLUTIONS,6077043520, 960.71 
http://statistics.data.gov.uk/id/local-authority/12UE,Huntingdonshire District Council,MD22,Ccity Recharge Invoices,511,Equipment Maintenance,222811,19/12/2017,20/12/2017,CR404499,EACS LTD,SIN107845," 1,120.00 "
http://statistics.data.gov.uk/id/local-authority/12UE,Huntingdonshire District Council,MP02,"Mfds -Local Print, Scan & Copy",511,Equipment Maintenance,221875,04/12/2017,05/12/2017,CR478866,KONICA MINOLTA,1134167610," 1,736.57 "
http://statistics.data.gov.uk/id/local-authority/12UE,Huntingdonshire District Council,MD22,Ccity Recharge Invoices,511,Equipment Maintenance,222811,19/12/2017,20/12/2017,CR404499,EACS LTD,SIN107845," 2,103.00 "
http://statistics.data.gov.uk/id/local-authority/12UE,Huntingdonshire District Council,MP01,Printing,511,Equipment Maintenance,221779,04/12/2017,05/12/2017,CR478080,B & H DIGITAL LTD,27577," 2,281.95 "
http://statistics.data.gov.uk/id/local-authority/12UE,Huntingdonshire District Council,KC80,Cctv Shared Service Hosting,511,Equipment Maintenance,222509,19/12/2017,19/12/2017,CR027775,QUADRANT SECURITY GROUP,SIN085440," 2,367.36 "
http://statistics.data.gov.uk/id/local-authority/12UE,Huntingdonshire District Council,KC80,Cctv Shared Service Hosting,511,Equipment Maintenance,222511,19/12/2017,19/12/2017,CR027775,QUADRANT SECURITY GROUP,SIN085438," 2,367.36 "
http://statistics.data.gov.uk/id/local-authority/12UE,Huntingdonshire District Council,MD22,Ccity Recharge Invoices,511,Equipment Maintenance,222808,19/12/2017,20/12/2017,CR425031,CAPITA MANAGED IT SOLUTIONS,6077043520," 2,453.32 "
http://statistics.data.gov.uk/id/local-authority/12UE,Huntingdonshire District Council,KC80,Cctv Shared Service Hosting,511,Equipment Maintenance,222510,19/12/2017,19/12/2017,CR027775,QUADRANT SECURITY GROUP,SIN085441," 3,000.50 "
http://statistics.data.gov.uk/id/local-authority/12UE,Huntingdonshire District Council,KC80,Cctv Shared Service Hosting,511,Equipment Maintenance,222513,19/12/2017,19/12/2017,CR027775,QUADRANT SECURITY GROUP,SIN085439," 3,000.50 "
http://statistics.data.gov.uk/id/local-authority/12UE,Huntingdonshire District Council,MP01,Printing,511,Equipment Maintenance,222415,13/12/2017,15/12/2017,CR478080,B & H DIGITAL LTD,27617," 3,237.92 "
http://statistics.data.gov.uk/id/local-authority/12UE,Huntingdonshire District Council,KC80,Cctv Shared Service Hosting,511,Equipment Maintenance,222513,19/12/2017,19/12/2017,CR027775,QUADRANT SECURITY GROUP,SIN085439," 3,856.66 "
http://statistics.data.gov.uk/id/local-authority/12UE,Huntingdonshire District Council,MD22,Ccity Recharge Invoices,511,Equipment Maintenance,222808,19/12/2017,20/12/2017,CR425031,CAPITA MANAGED IT SOLUTIONS,6077043520," 5,270.36 "
http://statistics.data.gov.uk/id/local-authority/12UE,Huntingdonshire District Council,KC80,Cctv Shared Service Hosting,511,Equipment Maintenance,222518,14/12/2017,14/12/2017,CR027775,QUADRANT SECURITY GROUP,SIN085292," 5,367.86 "
http://statistics.data.gov.uk/id/local-authority/12UE,Huntingdonshire District Council,MD22,Ccity Recharge Invoices,511,Equipment Maintenance,222809,19/12/2017,20/12/2017,CR424900,PREMIER BUSINESS AUDIO,229620," 6,000.00 "
http://statistics.data.gov.uk/id/local-authority/12UE,Huntingdonshire District Council,KC80,Cctv Shared Service Hosting,511,Equipment Maintenance,222520,14/12/2017,14/12/2017,CR027775,QUADRANT SECURITY GROUP,SIN085293," 9,224.52 "
http://statistics.data.gov.uk/id/local-authority/12UE,Huntingdonshire District Council,TC90,Car Parks Operational Mgt,522,Car Park Machines,222011,06/12/2017,07/12/2017,CR422668,BEMROSE MOBILE LTD,,"-4,226.16 "
http://statistics.data.gov.uk/id/local-authority/12UE,Huntingdonshire District Council,TC46,Huntingdon Multi-Storey,522,Car Park Machines,221429,06/12/2017,07/12/2017,CR417073,GEZE  UK LTD,88343902, 362.50 
http://statistics.data.gov.uk/id/local-authority/12UE,Huntingdonshire District Council,TC90,Car Parks Operational Mgt,522,Car Park Machines,222431,19/12/2017,19/12/2017,CR401137,CALE ACCESS UK LTD,129346," 3,161.06 "
http://statistics.data.gov.uk/id/local-authority/12UE,Huntingdonshire District Council,TC90,Car Parks Operational Mgt,522,Car Park Machines,222011,06/12/2017,07/12/2017,CR422668,BEMROSE MOBILE LTD,B3121765," 4,226.16 "
http://statistics.data.gov.uk/id/local-authority/12UE,Huntingdonshire District Council,E304,Wheeled Bins,525,Recycling Bins,221131,28/12/2017,28/12/2017,CR407190,SSI SCHAEFER LTD,SI34587, 950.00 
http://statistics.data.gov.uk/id/local-authority/12UE,Huntingdonshire District Council,LQ27,Burgess Bar,550,Materials,221610,06/12/2017,06/12/2017,CR027611,BOOKER CASH AND CARRY,2104494003, 272.91 
http://statistics.data.gov.uk/id/local-authority/12UE,Huntingdonshire District Council,LE01,Paxton Pits,550,Materials,222838,19/12/2017,19/12/2017,CR406479,BEDFORD TIMBER LTD,40120, 333.40 
http://statistics.data.gov.uk/id/local-authority/12UE,Huntingdonshire District Council,EG06,Grounds Maintenance,550,Materials,221820,13/12/2017,14/12/2017,CR001345,RIGBY TAYLOR LTD,RC002775, 750.00 
http://statistics.data.gov.uk/id/local-authority/12UE,Huntingdonshire District Council,LQ90,Site & Centre Management,551,Chemicals,222007,13/12/2017,14/12/2017,CR401094,LEISURETEQ,64893, 300.00 
http://statistics.data.gov.uk/id/local-authority/12UE,Huntingdonshire District Council,LQ01,Swimming,551,Chemicals,222330,13/12/2017,14/12/2017,CR015017,BRENNTAG UK LTD,38SI 3860513, 958.85 
http://statistics.data.gov.uk/id/local-authority/12UE,Huntingdonshire District Council,EQ02,Recycling Collections,552,Refuse Sacks,222842,19/12/2017,19/12/2017,CR455671,IMPERIAL POLYTHENE PRODUCTS LTD,SIN093155, 640.64 
http://statistics.data.gov.uk/id/local-authority/12UE,Huntingdonshire District Council,LQ27,Burgess Bar,558,Bar Provisions,221610,06/12/2017,06/12/2017,CR027611,BOOKER CASH AND CARRY,2104494003, 341.04 
http://statistics.data.gov.uk/id/local-authority/12UE,Huntingdonshire District Council,LQ27,Burgess Bar,558,Bar Provisions,222085,13/12/2017,14/12/2017,CR422253,OAKHAM ALES,I177779, 365.34 
http://statistics.data.gov.uk/id/local-authority/12UE,Huntingdonshire District Council,LK20,Hospitality,558,Bar Provisions,222854,20/12/2017,20/12/2017,CR422174,LACONS,697421, 432.84 
http://statistics.data.gov.uk/id/local-authority/12UE,Huntingdonshire District Council,LQ21,Burgess Hall,558,Bar Provisions,222496,20/12/2017,20/12/2017,CR422253,OAKHAM ALES,I178160," 1,071.22 "
http://statistics.data.gov.uk/id/local-authority/12UE,Huntingdonshire District Council,LQ27,Burgess Bar,558,Bar Provisions,222688,20/12/2017,20/12/2017,CR027611,BOOKER CASH AND CARRY,2104570479," 1,418.19 "
http://statistics.data.gov.uk/id/local-authority/12UE,Huntingdonshire District Council,LQ27,Burgess Bar,558,Bar Provisions,222238,13/12/2017,14/12/2017,CR422174,LACONS,696084," 1,511.24 "
http://statistics.data.gov.uk/id/local-authority/12UE,Huntingdonshire District Council,LQ27,Burgess Bar,558,Bar Provisions,222677,20/12/2017,20/12/2017,CR422174,LACONS,697425," 2,069.91 "
http://statistics.data.gov.uk/id/local-authority/12UE,Huntingdonshire District Council,LQ27,Burgess Bar,558,Bar Provisions,221778,06/12/2017,06/12/2017,CR422174,LACONS,695043," 2,477.20 "
http://statistics.data.gov.uk/id/local-authority/12UE,Huntingdonshire District Council,LQ20,Hospitality,559,Catering Materials,221996,06/12/2017,06/12/2017,CR455156,WESTMINSTER FOODSERVICE,307275, 259.33 
http://statistics.data.gov.uk/id/local-authority/12UE,Huntingdonshire District Council,LD40,Hinchingbrooke Park Cafe,559,Catering Materials,221916,06/12/2017,07/12/2017,CR411339,KING BROS,933067, 315.96 
http://statistics.data.gov.uk/id/local-authority/12UE,Huntingdonshire District Council,LD40,Hinchingbrooke Park Cafe,559,Catering Materials,222903,19/12/2017,20/12/2017,CR411339,KING BROS,936165, 322.82 
http://statistics.data.gov.uk/id/local-authority/12UE,Huntingdonshire District Council,LQ20,Hospitality,559,Catering Materials,222847,20/12/2017,20/12/2017,CR455958,SLUSH PUPPIE LTD,INV109831, 341.55 
http://statistics.data.gov.uk/id/local-authority/12UE,Huntingdonshire District Council,LD40,Hinchingbrooke Park Cafe,559,Catering Materials,221912,06/12/2017,07/12/2017,CR411339,KING BROS,934064, 343.46 
http://statistics.data.gov.uk/id/local-authority/12UE,Huntingdonshire District Council,LD40,Hinchingbrooke Park Cafe,559,Catering Materials,222805,20/12/2017,20/12/2017,CR027611,BOOKER CASH AND CARRY,2104544613, 409.51 
http://statistics.data.gov.uk/id/local-authority/12UE,Huntingdonshire District Council,LQ20,Hospitality,560,Vending Materials,222029,13/12/2017,14/12/2017,CR422660,LUCOZADE RIBENA SUNTORY LTD,10569947, 286.93 
http://statistics.data.gov.uk/id/local-authority/12UE,Huntingdonshire District Council,LP20,Hospitality,560,Vending Materials,222349,20/12/2017,20/12/2017,CR422660,LUCOZADE RIBENA SUNTORY LTD,10572430, 297.57 
http://statistics.data.gov.uk/id/local-authority/12UE,Huntingdonshire District Council,MP01,Printing,562,Paper,222388,13/12/2017,13/12/2017,CR479468,ANTALIS LTD,7372785, 300.00 
http://statistics.data.gov.uk/id/local-authority/12UE,Huntingdonshire District Council,LP90,Site & Centre Management,570,Materials For Resale,221558,13/12/2017,14/12/2017,CR424813,SPORTMAX,103129, 397.15 
http://statistics.data.gov.uk/id/local-authority/12UE,Huntingdonshire District Council,LN90,Site & Centre Management,570,Materials For Resale,221396,13/12/2017,14/12/2017,CR424813,SPORTMAX,103054, 518.45 
http://statistics.data.gov.uk/id/local-authority/12UE,Huntingdonshire District Council,LQ90,Site & Centre Management,570,Materials For Resale,221473,06/12/2017,06/12/2017,CR424813,SPORTMAX,103101, 662.30 
http://statistics.data.gov.uk/id/local-authority/12UE,Huntingdonshire District Council,LS01,Swimming,571,Badges And Certificates,221789,13/12/2017,11/01/2018,CR478928,FRANKLINS GROUP,,-300.00 
http://statistics.data.gov.uk/id/local-authority/12UE,Huntingdonshire District Council,LR01,Swimming,571,Badges And Certificates,221789,13/12/2017,11/01/2018,CR478928,FRANKLINS GROUP,, 300.00 
http://statistics.data.gov.uk/id/local-authority/12UE,Huntingdonshire District Council,LS01,Swimming,571,Badges And Certificates,221789,13/12/2017,14/12/2017,CR478928,FRANKLINS GROUP,173729, 300.00 
http://statistics.data.gov.uk/id/local-authority/12UE,Huntingdonshire District Council,LQ01,Swimming,571,Badges And Certificates,221789,13/12/2017,14/12/2017,CR478928,FRANKLINS GROUP,173729, 400.00 
http://statistics.data.gov.uk/id/local-authority/12UE,Huntingdonshire District Council,N002,Vehicles & Plant,600,Vehicles Purchased,222458,19/12/2017,20/12/2017,CR424060,MARSHALL OF KNEBWORTH,342435," 33,986.30 "
http://statistics.data.gov.uk/id/local-authority/12UE,Huntingdonshire District Council,N002,Vehicles & Plant,600,Vehicles Purchased,222459,19/12/2017,20/12/2017,CR424060,MARSHALL OF KNEBWORTH,342437," 33,986.30 "
http://statistics.data.gov.uk/id/local-authority/12UE,Huntingdonshire District Council,N002,Vehicles & Plant,600,Vehicles Purchased,222457,19/12/2017,20/12/2017,CR424060,MARSHALL OF KNEBWORTH,342308," 34,304.53 "
http://statistics.data.gov.uk/id/local-authority/12UE,Huntingdonshire District Council,ER01,Domestic Waste Collection,607,Vehicle Hire,221825,13/12/2017,14/12/2017,CR416566,SHB HIRE LTD,10885181, 580.62 
http://statistics.data.gov.uk/id/local-authority/12UE,Huntingdonshire District Council,ES01,Street Cleansing,607,Vehicle Hire,222484,19/12/2017,20/12/2017,CR424875,LONGMARSH LTD,7146617, 840.00 
http://statistics.data.gov.uk/id/local-authority/12UE,Huntingdonshire District Council,ES01,Street Cleansing,607,Vehicle Hire,222485,19/12/2017,20/12/2017,CR424875,LONGMARSH LTD,7146616, 840.00 
http://statistics.data.gov.uk/id/local-authority/12UE,Huntingdonshire District Council,ES01,Street Cleansing,607,Vehicle Hire,221826,13/12/2017,14/12/2017,CR416566,SHB HIRE LTD,10889811, 945.00 
http://statistics.data.gov.uk/id/local-authority/12UE,Huntingdonshire District Council,ER01,Domestic Waste Collection,607,Vehicle Hire,221873,12/12/2017,14/12/2017,CR423428,C-WAY DRIVER TRAINING,131410887," 1,170.00 "
http://statistics.data.gov.uk/id/local-authority/12UE,Huntingdonshire District Council,MU95,Vehicle Maintenance,615,Diesel,50336,31/12/2017,25/01/2018,,,, 299.29 
http://statistics.data.gov.uk/id/local-authority/12UE,Huntingdonshire District Council,GM14,Ph & Hc Vehicles,618,Vehicle Inspection,221892,05/12/2017,07/12/2017,CR422066,ADAMS AUTOS,5643," 3,370.00 "
http://statistics.data.gov.uk/id/local-authority/12UE,Huntingdonshire District Council,EG06,Grounds Maintenance,625,Vehicle Parts & Fittings,222912,20/12/2017,20/12/2017,CR098282,REESINK TURFCARE UK LTD,PSC18418,-978.24 
http://statistics.data.gov.uk/id/local-authority/12UE,Huntingdonshire District Council,EG06,Grounds Maintenance,625,Vehicle Parts & Fittings,220712,06/12/2017,07/12/2017,CR098282,REESINK TURFCARE UK LTD,PSC18359,-576.77 
http://statistics.data.gov.uk/id/local-authority/12UE,Huntingdonshire District Council,EG06,Grounds Maintenance,625,Vehicle Parts & Fittings,208747,01/12/2017,15/01/2018,CR406475,F P SMITH MOTORS LTD,,-353.67 
http://statistics.data.gov.uk/id/local-authority/12UE,Huntingdonshire District Council,ER01,Domestic Waste Collection,625,Vehicle Parts & Fittings,222287,20/12/2017,20/12/2017,CR000200,DENNIS EAGLE LTD,DE11089395, 250.00 
http://statistics.data.gov.uk/id/local-authority/12UE,Huntingdonshire District Council,ES01,Street Cleansing,625,Vehicle Parts & Fittings,221198,06/12/2017,07/12/2017,CR007546,FRANK RATCLIFFE & SON,88534, 252.00 
http://statistics.data.gov.uk/id/local-authority/12UE,Huntingdonshire District Council,EG06,Grounds Maintenance,625,Vehicle Parts & Fittings,220426,06/12/2017,07/12/2017,CR098282,REESINK TURFCARE UK LTD,PSI1722800, 259.54 
http://statistics.data.gov.uk/id/local-authority/12UE,Huntingdonshire District Council,EG06,Grounds Maintenance,625,Vehicle Parts & Fittings,221197,06/12/2017,07/12/2017,CR098282,REESINK TURFCARE UK LTD,PSI1723853, 259.54 
http://statistics.data.gov.uk/id/local-authority/12UE,Huntingdonshire District Council,MS01,Post Handling,625,Vehicle Parts & Fittings,221205,06/12/2017,07/12/2017,CR009641,MARSHALL MOTOR GROUP LTD,58012555, 259.86 
http://statistics.data.gov.uk/id/local-authority/12UE,Huntingdonshire District Council,EQ02,Recycling Collections,625,Vehicle Parts & Fittings,222279,20/12/2017,20/12/2017,CR000200,DENNIS EAGLE LTD,DE11089001, 310.77 
http://statistics.data.gov.uk/id/local-authority/12UE,Huntingdonshire District Council,MU95,Vehicle Maintenance,625,Vehicle Parts & Fittings,221884,06/12/2017,07/12/2017,CR478298,BERENDSEN,SN2767992, 343.52 
http://statistics.data.gov.uk/id/local-authority/12UE,Huntingdonshire District Council,ES01,Street Cleansing,625,Vehicle Parts & Fittings,208747,01/12/2017,15/01/2018,CR406475,F P SMITH MOTORS LTD,, 353.67 
http://statistics.data.gov.uk/id/local-authority/12UE,Huntingdonshire District Council,ES01,Street Cleansing,625,Vehicle Parts & Fittings,222280,20/12/2017,20/12/2017,CR030353,D & H SIGN & DISPLAY SERVICES,6708, 366.00 
http://statistics.data.gov.uk/id/local-authority/12UE,Huntingdonshire District Council,EG06,Grounds Maintenance,625,Vehicle Parts & Fittings,221196,06/12/2017,07/12/2017,CR098282,REESINK TURFCARE UK LTD,PSI1724137, 451.59 
http://statistics.data.gov.uk/id/local-authority/12UE,Huntingdonshire District Council,ER01,Domestic Waste Collection,625,Vehicle Parts & Fittings,222880,20/12/2017,20/12/2017,CR000200,DENNIS EAGLE LTD,DE11090782, 528.23 
http://statistics.data.gov.uk/id/local-authority/12UE,Huntingdonshire District Council,ER01,Domestic Waste Collection,625,Vehicle Parts & Fittings,222312,19/12/2017,19/12/2017,CR402183,TERBERG MATEC UK LTD,96349889, 536.35 
http://statistics.data.gov.uk/id/local-authority/12UE,Huntingdonshire District Council,EG06,Grounds Maintenance,625,Vehicle Parts & Fittings,219938,06/12/2017,07/12/2017,CR098282,REESINK TURFCARE UK LTD,PSI1721689, 546.03 
http://statistics.data.gov.uk/id/local-authority/12UE,Huntingdonshire District Council,EG06,Grounds Maintenance,625,Vehicle Parts & Fittings,222874,20/12/2017,20/12/2017,CR478330,BARCLAY & MATHIESON LTD,04PET-18487, 576.95 
http://statistics.data.gov.uk/id/local-authority/12UE,Huntingdonshire District Council,ES01,Street Cleansing,625,Vehicle Parts & Fittings,222480,19/12/2017,20/12/2017,CR029831,JOHNSTON ENGINEERING LTD,61565520, 622.15 
http://statistics.data.gov.uk/id/local-authority/12UE,Huntingdonshire District Council,ER01,Domestic Waste Collection,625,Vehicle Parts & Fittings,221885,20/12/2017,20/12/2017,CR000200,DENNIS EAGLE LTD,DE11087240, 639.39 
http://statistics.data.gov.uk/id/local-authority/12UE,Huntingdonshire District Council,ER01,Domestic Waste Collection,625,Vehicle Parts & Fittings,222882,28/12/2017,29/12/2017,CR000200,DENNIS EAGLE LTD,316172, 735.04 
http://statistics.data.gov.uk/id/local-authority/12UE,Huntingdonshire District Council,EG06,Grounds Maintenance,625,Vehicle Parts & Fittings,222278,20/12/2017,20/12/2017,CR001981,DTS SOLUTIONS (UK) LTD,S000839, 868.50 
http://statistics.data.gov.uk/id/local-authority/12UE,Huntingdonshire District Council,EG06,Grounds Maintenance,625,Vehicle Parts & Fittings,222278,20/12/2017,20/12/2017,CR001981,DTS SOLUTIONS (UK) LTD,S000839, 868.50 
http://statistics.data.gov.uk/id/local-authority/12UE,Huntingdonshire District Council,ES01,Street Cleansing,625,Vehicle Parts & Fittings,222865,20/12/2017,20/12/2017,CR001981,DTS SOLUTIONS (UK) LTD,S000901, 868.50 
http://statistics.data.gov.uk/id/local-authority/12UE,Huntingdonshire District Council,ES01,Street Cleansing,625,Vehicle Parts & Fittings,222865,20/12/2017,20/12/2017,CR001981,DTS SOLUTIONS (UK) LTD,S000901, 868.50 
http://statistics.data.gov.uk/id/local-authority/12UE,Huntingdonshire District Council,ES01,Street Cleansing,625,Vehicle Parts & Fittings,222277,20/12/2017,20/12/2017,CR001981,DTS SOLUTIONS (UK) LTD,S000838, 868.50 
http://statistics.data.gov.uk/id/local-authority/12UE,Huntingdonshire District Council,EG06,Grounds Maintenance,625,Vehicle Parts & Fittings,222492,19/12/2017,20/12/2017,CR098282,REESINK TURFCARE UK LTD,PSI1724977, 880.44 
http://statistics.data.gov.uk/id/local-authority/12UE,Huntingdonshire District Council,ER01,Domestic Waste Collection,625,Vehicle Parts & Fittings,221563,06/12/2017,07/12/2017,CR001981,DTS SOLUTIONS (UK) LTD,S000779, 882.50 
http://statistics.data.gov.uk/id/local-authority/12UE,Huntingdonshire District Council,ER01,Domestic Waste Collection,625,Vehicle Parts & Fittings,221084,06/12/2017,07/12/2017,CR000200,DENNIS EAGLE LTD,DE11085152, 920.04 
http://statistics.data.gov.uk/id/local-authority/12UE,Huntingdonshire District Council,EG06,Grounds Maintenance,625,Vehicle Parts & Fittings,220425,06/12/2017,07/12/2017,CR098282,REESINK TURFCARE UK LTD,PSI1722442, 978.24 
http://statistics.data.gov.uk/id/local-authority/12UE,Huntingdonshire District Council,ER01,Domestic Waste Collection,625,Vehicle Parts & Fittings,222288,20/12/2017,20/12/2017,CR000200,DENNIS EAGLE LTD,DE11089394," 1,027.11 "
http://statistics.data.gov.uk/id/local-authority/12UE,Huntingdonshire District Council,EG06,Grounds Maintenance,625,Vehicle Parts & Fittings,222494,19/12/2017,20/12/2017,CR098282,REESINK TURFCARE UK LTD,PSI1724995," 1,038.19 "
http://statistics.data.gov.uk/id/local-authority/12UE,Huntingdonshire District Council,EQ02,Recycling Collections,625,Vehicle Parts & Fittings,222471,19/12/2017,20/12/2017,CR480661,M & N VEHICLE SERVICES,29425," 1,458.34 "
http://statistics.data.gov.uk/id/local-authority/12UE,Huntingdonshire District Council,ES01,Street Cleansing,625,Vehicle Parts & Fittings,222473,19/12/2017,20/12/2017,CR480661,M & N VEHICLE SERVICES,29533," 1,509.54 "
http://statistics.data.gov.uk/id/local-authority/12UE,Huntingdonshire District Council,EG05,Arboricultural Team,625,Vehicle Parts & Fittings,222456,20/12/2017,20/12/2017,CR141141,INTERCOUNTY TRUCK & VAN LTD,25068715," 1,679.75 "
http://statistics.data.gov.uk/id/local-authority/12UE,Huntingdonshire District Council,EG06,Grounds Maintenance,625,Vehicle Parts & Fittings,222309,20/12/2017,20/12/2017,CR000430,ARTHUR IBBETT LTD,121518," 2,107.68 "
http://statistics.data.gov.uk/id/local-authority/12UE,Huntingdonshire District Council,EG06,Grounds Maintenance,625,Vehicle Parts & Fittings,220707,06/12/2017,07/12/2017,CR098282,REESINK TURFCARE UK LTD,PSI1723240," 3,535.10 "
http://statistics.data.gov.uk/id/local-authority/12UE,Huntingdonshire District Council,EG06,Grounds Maintenance,625,Vehicle Parts & Fittings,220424,06/12/2017,07/12/2017,CR098282,REESINK TURFCARE UK LTD,PSI1722428," 7,275.49 "
http://statistics.data.gov.uk/id/local-authority/12UE,Huntingdonshire District Council,ER01,Domestic Waste Collection,630,Tyres,221940,13/12/2017,14/12/2017,CR406810,BANDVULC TRUCK TYRES,109321, 306.57 
http://statistics.data.gov.uk/id/local-authority/12UE,Huntingdonshire District Council,CH21,Corporate Director (Delivery),636,Travel Expenses,50336,31/12/2017,25/01/2018,,,, 258.60 
http://statistics.data.gov.uk/id/local-authority/12UE,Huntingdonshire District Council,MD20,Imd Shared Service,636,Travel Expenses,50336,31/12/2017,25/01/2018,,,, 316.80 
http://statistics.data.gov.uk/id/local-authority/12UE,Huntingdonshire District Council,CH02,Corporate Team,636,Travel Expenses,50336,31/12/2017,25/01/2018,,,, 334.70 
http://statistics.data.gov.uk/id/local-authority/12UE,Huntingdonshire District Council,CH46,Transformation - Worksmart,636,Travel Expenses,50336,31/12/2017,25/01/2018,,,, 378.00 
http://statistics.data.gov.uk/id/local-authority/12UE,Huntingdonshire District Council,LP90,Site & Centre Management,702,Cash Collection,222672,15/12/2017,15/12/2017,CR422256,JADE SECURITY SERVICES LTD,16490, 251.10 
http://statistics.data.gov.uk/id/local-authority/12UE,Huntingdonshire District Council,FA01,Corporate Finance (Non Cm),702,Cash Collection,222672,15/12/2017,15/12/2017,CR422256,JADE SECURITY SERVICES LTD,16490, 292.95 
http://statistics.data.gov.uk/id/local-authority/12UE,Huntingdonshire District Council,LN90,Site & Centre Management,702,Cash Collection,222672,15/12/2017,15/12/2017,CR422256,JADE SECURITY SERVICES LTD,16490, 334.80 
http://statistics.data.gov.uk/id/local-authority/12UE,Huntingdonshire District Council,FA01,Corporate Finance (Non Cm),702,Cash Collection,50336,31/12/2017,25/01/2018,,,," 1,149.50 "
http://statistics.data.gov.uk/id/local-authority/12UE,Huntingdonshire District Council,TC90,Car Parks Operational Mgt,702,Cash Collection,222460,19/12/2017,20/12/2017,CR422256,JADE SECURITY SERVICES LTD,16489," 3,972.90 "
http://statistics.data.gov.uk/id/local-authority/12UE,Huntingdonshire District Council,HB85,Benefits Management,703,Bailiffs,221783,01/12/2017,01/12/2017,CR409114,NEWLYN PLC,4636, 491.92 
http://statistics.data.gov.uk/id/local-authority/12UE,Huntingdonshire District Council,HB85,Benefits Management,703,Bailiffs,222232,07/12/2017,07/12/2017,CR422350,JACOBS,B041217," 1,283.31 "
http://statistics.data.gov.uk/id/local-authority/12UE,Huntingdonshire District Council,CH08,Corporate Finance,704,Bank Charges,50336,31/12/2017,25/01/2018,,,, 250.33 
http://statistics.data.gov.uk/id/local-authority/12UE,Huntingdonshire District Council,CH08,Corporate Finance,704,Bank Charges,50336,31/12/2017,25/01/2018,,,, 430.85 
http://statistics.data.gov.uk/id/local-authority/12UE,Huntingdonshire District Council,CH08,Corporate Finance,704,Bank Charges,50336,31/12/2017,25/01/2018,,,," 4,721.67 "
http://statistics.data.gov.uk/id/local-authority/12UE,Huntingdonshire District Council,CH08,Corporate Finance,704,Bank Charges,50336,31/12/2017,25/01/2018,,,," 8,508.27 "
http://statistics.data.gov.uk/id/local-authority/12UE,Huntingdonshire District Council,MB01,Pathfinder House,710,Catering,222087,12/12/2017,14/12/2017,CR422866,BROOKES,102072, 672.10 
http://statistics.data.gov.uk/id/local-authority/12UE,Huntingdonshire District Council,LQ21,Burgess Hall,710,Catering,222508,13/12/2017,14/12/2017,CR453802,BIG DAY EVENTS LTD,INV-0800," 6,174.80 "
http://statistics.data.gov.uk/id/local-authority/12UE,Huntingdonshire District Council,LQ21,Burgess Hall,710,Catering,222507,13/12/2017,14/12/2017,CR453802,BIG DAY EVENTS LTD,INV-0799," 6,523.65 "
http://statistics.data.gov.uk/id/local-authority/12UE,Huntingdonshire District Council,LN90,Site & Centre Management,711,Consultants,222879,20/12/2017,20/12/2017,CR422398,GREENDAY ENERGY LTD,GD659, 400.00 
http://statistics.data.gov.uk/id/local-authority/12UE,Huntingdonshire District Council,PA03,Local Plan Prep (Excl Inq),711,Consultants,222449,13/12/2017,13/12/2017,CR455436,CORNERSTONE BARRISTERS,136164, 550.00 
http://statistics.data.gov.uk/id/local-authority/12UE,Huntingdonshire District Council,FA01,Corporate Finance (Non Cm),711,Consultants,222504,13/12/2017,13/12/2017,CR405717,GLADSTONE MRM,7394, 999.00 
http://statistics.data.gov.uk/id/local-authority/12UE,Huntingdonshire District Council,MD20,Imd Shared Service,711,Consultants,222407,13/12/2017,13/12/2017,CR424038,NCC GROUP SECURITY SERVICES LTD,INVRMAG1002547," 1,073.67 "
http://statistics.data.gov.uk/id/local-authority/12UE,Huntingdonshire District Council,QD01,Industrial Properties,711,Consultants,222383,12/12/2017,12/12/2017,CR424653,RIDGE AND PARTNERS LLP,126658," 1,127.69 "
http://statistics.data.gov.uk/id/local-authority/12UE,Huntingdonshire District Council,KA08,Ramsey Neighbourhood,711,Consultants,223104,21/12/2017,21/12/2017,CR400788,BARKER STOREY MATTHEWS,," 1,250.00 "
http://statistics.data.gov.uk/id/local-authority/12UE,Huntingdonshire District Council,QD01,Industrial Properties,711,Consultants,223105,21/12/2017,21/12/2017,CR424653,RIDGE AND PARTNERS LLP,127777," 1,296.58 "
http://statistics.data.gov.uk/id/local-authority/12UE,Huntingdonshire District Council,MD20,Imd Shared Service,711,Consultants,222441,13/12/2017,13/12/2017,CR481134,IDOX,7017478," 1,300.00 "
http://statistics.data.gov.uk/id/local-authority/12UE,Huntingdonshire District Council,PA03,Local Plan Prep (Excl Inq),711,Consultants,222035,07/12/2017,07/12/2017,CR424093,BODSEY ECOLOGY LTD,85," 1,380.00 "
http://statistics.data.gov.uk/id/local-authority/12UE,Huntingdonshire District Council,PA03,Local Plan Prep (Excl Inq),711,Consultants,222767,19/12/2017,19/12/2017,CR425066,CAMBRIDGE PLANNING SERVICES,133," 1,920.00 "
http://statistics.data.gov.uk/id/local-authority/12UE,Huntingdonshire District Council,MB01,Pathfinder House,711,Consultants,222841,20/12/2017,20/12/2017,CR422382,AITCHISON RAFFERTY,SAC015179," 2,970.00 "
http://statistics.data.gov.uk/id/local-authority/12UE,Huntingdonshire District Council,PA03,Local Plan Prep (Excl Inq),711,Consultants,222416,13/12/2017,13/12/2017,CR424152,CUSHMAN & WAKEFIELD,11-000012802," 3,200.00 "
http://statistics.data.gov.uk/id/local-authority/12UE,Huntingdonshire District Council,QD01,Industrial Properties,711,Consultants,222382,12/12/2017,12/12/2017,CR400788,BARKER STOREY MATTHEWS,60170," 3,500.00 "
http://statistics.data.gov.uk/id/local-authority/12UE,Huntingdonshire District Council,PA03,Local Plan Prep (Excl Inq),711,Consultants,222758,19/12/2017,19/12/2017,CR423984,OVE ARUP & PARTNERS LIMITED,1007418," 5,854.00 "
http://statistics.data.gov.uk/id/local-authority/12UE,Huntingdonshire District Council,QF03,Oak Tree Health Centre,711,Consultants,223106,21/12/2017,21/12/2017,CR403316,RICHARD HERRMANN ASSOC LTD,3950," 9,785.00 "
http://statistics.data.gov.uk/id/local-authority/12UE,Huntingdonshire District Council,MU75,Audit,711,Consultants,222701,18/12/2017,18/12/2017,CR424698,BDO LLP,1679302," 12,000.00 "
http://statistics.data.gov.uk/id/local-authority/12UE,Huntingdonshire District Council,TC90,Car Parks Operational Mgt,711,Consultants,222004,07/12/2017,07/12/2017,CR422382,AITCHISON RAFFERTY,SAC015067," 14,960.65 "
http://statistics.data.gov.uk/id/local-authority/12UE,Huntingdonshire District Council,CH05,Strategic Transformation,711,Consultants,222373,12/12/2017,12/12/2017,CR405127,SOUTH CAMBRIDGESHIRE DISTRICT COUNCIL,DINV 226012," 17,251.32 "
http://statistics.data.gov.uk/id/local-authority/12UE,Huntingdonshire District Council,PA03,Local Plan Prep (Excl Inq),711,Consultants,222759,19/12/2017,19/12/2017,CR423984,OVE ARUP & PARTNERS LIMITED,1007419," 18,176.00 "
http://statistics.data.gov.uk/id/local-authority/12UE,Huntingdonshire District Council,HB85,Benefits Management,723,Enquiries,222233,07/12/2017,07/12/2017,CR455548,CALLCREDIT LTD,732534, 631.00 
http://statistics.data.gov.uk/id/local-authority/12UE,Huntingdonshire District Council,CD90,Committee Management,723,Enquiries,222256,08/12/2017,08/12/2017,CR480787,FREETHS  LLP,90256734," 1,000.00 "
http://statistics.data.gov.uk/id/local-authority/12UE,Huntingdonshire District Council,H504,Disabled Facilities Grants,724,Home Improvement Agency Fees,222391,14/12/2017,14/12/2017,CR017896,CAMBRIDGE CITY COUNCIL,199311," 51,933.00 "
http://statistics.data.gov.uk/id/local-authority/12UE,Huntingdonshire District Council,MU61,Legal,729,Legal Fees,222707,18/12/2017,18/12/2017,CR422022,LGSS LAW,8483, 268.80 
http://statistics.data.gov.uk/id/local-authority/12UE,Huntingdonshire District Council,MU61,Legal,729,Legal Fees,222703,18/12/2017,18/12/2017,CR422022,LGSS LAW,7684, 288.00 
http://statistics.data.gov.uk/id/local-authority/12UE,Huntingdonshire District Council,ER01,Domestic Waste Collection,729,Legal Fees,222019,06/12/2017,07/12/2017,CR422022,LGSS LAW,11357, 530.40 
http://statistics.data.gov.uk/id/local-authority/12UE,Huntingdonshire District Council,ER01,Domestic Waste Collection,729,Legal Fees,222020,06/12/2017,07/12/2017,CR422022,LGSS LAW,12933, 795.60 
http://statistics.data.gov.uk/id/local-authority/12UE,Huntingdonshire District Council,MU61,Legal,729,Legal Fees,222705,18/12/2017,18/12/2017,CR422022,LGSS LAW,6351/7673/11599, 918.00 
http://statistics.data.gov.uk/id/local-authority/12UE,Huntingdonshire District Council,HB85,Benefits Management,729,Legal Fees,50336,31/12/2017,25/01/2018,,,," 2,397.00 "
http://statistics.data.gov.uk/id/local-authority/12UE,Huntingdonshire District Council,KP21,Building Safer Communities,729,Legal Fees,220657,11/12/2017,14/12/2017,CR425014,PERSONAL DATA REDACTED,HUNTS 001 17/18," 4,590.90 "
http://statistics.data.gov.uk/id/local-authority/12UE,Huntingdonshire District Council,HB85,Benefits Management,729,Legal Fees,222782,19/12/2017,19/12/2017,CR415973,SARFO SOLICITORS,1097/2017," 8,185.59 "
http://statistics.data.gov.uk/id/local-authority/12UE,Huntingdonshire District Council,LQ10,Indoor Sports,730,Licences,221987,13/12/2017,14/12/2017,CR025826,LES MILLS UK,SIV226727, 255.38 
http://statistics.data.gov.uk/id/local-authority/12UE,Huntingdonshire District Council,HH01,Homelessness,733,Management Charge,618432,07/12/2017,07/12/2017,CR409301,KING STREET HOUSING SOCIETY,19962," 2,536.66 "
http://statistics.data.gov.uk/id/local-authority/12UE,Huntingdonshire District Council,LD90,Hinchingbrooke Park Management,743,Promotions And Exhibitions,222900,19/12/2017,20/12/2017,CR415354,PERSONAL DATA REDACTED,WILLOW WSHOP, 560.00 
http://statistics.data.gov.uk/id/local-authority/12UE,Huntingdonshire District Council,LQ21,Burgess Hall,744,Entertainments Inc Cable Tv,222014,07/12/2017,07/12/2017,CR412228,LAYTONDINGS ENTERTAINMENT LTD,45222, 300.00 
http://statistics.data.gov.uk/id/local-authority/12UE,Huntingdonshire District Council,LQ21,Burgess Hall,744,Entertainments Inc Cable Tv,222343,13/12/2017,14/12/2017,CR024127,STARLITE ROADSHOW,8378, 450.00 
http://statistics.data.gov.uk/id/local-authority/12UE,Huntingdonshire District Council,LQ21,Burgess Hall,744,Entertainments Inc Cable Tv,222318,13/12/2017,14/12/2017,CR024127,STARLITE ROADSHOW,BOOGIE 17.11.17, 527.93 
http://statistics.data.gov.uk/id/local-authority/12UE,Huntingdonshire District Council,LQ21,Burgess Hall,744,Entertainments Inc Cable Tv,221795,06/12/2017,06/12/2017,CR024127,STARLITE ROADSHOW,8376, 705.00 
http://statistics.data.gov.uk/id/local-authority/12UE,Huntingdonshire District Council,LQ21,Burgess Hall,744,Entertainments Inc Cable Tv,222088,07/12/2017,07/12/2017,CR424109,K D THEATRE PRODUCTIONS LTD,INV-0114, 710.00 
http://statistics.data.gov.uk/id/local-authority/12UE,Huntingdonshire District Council,LQ21,Burgess Hall,744,Entertainments Inc Cable Tv,222236,13/12/2017,14/12/2017,CR423529,OFF THE KERB PRODUCTIONS,57348," 3,569.60 "
http://statistics.data.gov.uk/id/local-authority/12UE,Huntingdonshire District Council,LQ21,Burgess Hall,744,Entertainments Inc Cable Tv,222668,20/12/2017,20/12/2017,CR423409,NORWELL LAPLEY PRODUCTIONS LTD,NLP174/084," 7,868.33 "
http://statistics.data.gov.uk/id/local-authority/12UE,Huntingdonshire District Council,EQ02,Recycling Collections,747,Recycling Collections,221958,06/12/2017,07/12/2017,CR127636,AMEYCESPA (EAST) LTD,ASI56152," 22,957.59 "
http://statistics.data.gov.uk/id/local-authority/12UE,Huntingdonshire District Council,MU16,Development Management,754,Corporate Subscriptions,222444,13/12/2017,13/12/2017,CR412314,THOMSON REUTERS,9000874603," 3,542.00 "
http://statistics.data.gov.uk/id/local-authority/12UE,Huntingdonshire District Council,CH22,Head Of Resources,755,Professional Subscriptions,222700,18/12/2017,18/12/2017,CR000107,CIPFA,5226150, 410.00 
http://statistics.data.gov.uk/id/local-authority/12UE,Huntingdonshire District Council,ER03,Trade Refuse,763,Waste Disposal,221085,21/12/2017,21/12/2017,CR006678,CAMBRIDGESHIRE COUNTY COUNCIL,10761801," 5,239.29 "
http://statistics.data.gov.uk/id/local-authority/12UE,Huntingdonshire District Council,KC80,Cctv Shared Service Hosting,767,Transmission Lines Rental,222517,14/12/2017,14/12/2017,CR412057,VIRGIN MEDIA,242159-131," 1,800.00 "
http://statistics.data.gov.uk/id/local-authority/12UE,Huntingdonshire District Council,LN90,Site & Centre Management,772,Income Transaction Charges,50336,31/12/2017,25/01/2018,,,, 330.73 
http://statistics.data.gov.uk/id/local-authority/12UE,Huntingdonshire District Council,LQ90,Site & Centre Management,772,Income Transaction Charges,50336,31/12/2017,25/01/2018,,,," 1,200.62 "
http://statistics.data.gov.uk/id/local-authority/12UE,Huntingdonshire District Council,MB41,Eastfield House,773,Shredding,222461,19/12/2017,20/12/2017,CR480152,DATA SOLUTIONS T/A RESTORE DATASHRED,604007, 397.94 
http://statistics.data.gov.uk/id/local-authority/12UE,Huntingdonshire District Council,PA10,Viability Assessments,777,Subcontractors,222058,07/12/2017,07/12/2017,CR424995,BESPOKE PROPERTY CONSULTANTS,21037," 2,650.00 "
http://statistics.data.gov.uk/id/local-authority/12UE,Huntingdonshire District Council,D014,Refit Buildings,782,Utilities Monitoring,222824,20/12/2017,20/12/2017,CR424762,BOUYGUES E & S F M UK LTD,1349030626," 183,511.00 "
http://statistics.data.gov.uk/id/local-authority/12UE,Huntingdonshire District Council,H502,Housing Private Sector Grants,798,Shared Service Savings,221814,07/12/2017,07/12/2017,CR089905,BSG PROPERTY SERVICES LTD,S32912, 480.00 
http://statistics.data.gov.uk/id/local-authority/12UE,Huntingdonshire District Council,H502,Housing Private Sector Grants,798,Shared Service Savings,221818,19/12/2017,19/12/2017,CR089905,BSG PROPERTY SERVICES LTD,S33222, 480.00 
http://statistics.data.gov.uk/id/local-authority/12UE,Huntingdonshire District Council,KG04,Voluntary Sector Grants,800,Grants (Paid Out),221617,11/12/2017,14/12/2017,CR478566,PORTAKABIN LTD,900798621, 672.54 
http://statistics.data.gov.uk/id/local-authority/12UE,Huntingdonshire District Council,H504,Disabled Facilities Grants,801,Mandatory Grants,222268,14/12/2017,14/12/2017,CR423458,GASWISE,INVOICE ERROR,"-2,866.00 "
http://statistics.data.gov.uk/id/local-authority/12UE,Huntingdonshire District Council,H504,Disabled Facilities Grants,801,Mandatory Grants,221909,07/12/2017,07/12/2017,CR405796,WAYNE BINGHAM,407, 260.00 
http://statistics.data.gov.uk/id/local-authority/12UE,Huntingdonshire District Council,H504,Disabled Facilities Grants,801,Mandatory Grants,221904,07/12/2017,07/12/2017,CR423401,CAREBASE,71771, 954.00 
http://statistics.data.gov.uk/id/local-authority/12UE,Huntingdonshire District Council,H504,Disabled Facilities Grants,801,Mandatory Grants,222289,14/12/2017,14/12/2017,CR424786,C3S PROJECTS LIMITED,6784-5," 1,020.00 "
http://statistics.data.gov.uk/id/local-authority/12UE,Huntingdonshire District Council,H504,Disabled Facilities Grants,801,Mandatory Grants,221768,07/12/2017,07/12/2017,CR480595,M WATSON CONSTRUCTION LTD,21099," 1,732.15 "
http://statistics.data.gov.uk/id/local-authority/12UE,Huntingdonshire District Council,H504,Disabled Facilities Grants,801,Mandatory Grants,223140,28/12/2017,28/12/2017,CR405796,WAYNE BINGHAM,410," 2,545.00 "
http://statistics.data.gov.uk/id/local-authority/12UE,Huntingdonshire District Council,H504,Disabled Facilities Grants,801,Mandatory Grants,222267,14/12/2017,14/12/2017,CR000759,STANNAH LTD Ref(20HU025),S085072923," 2,866.00 "
http://statistics.data.gov.uk/id/local-authority/12UE,Huntingdonshire District Council,H504,Disabled Facilities Grants,801,Mandatory Grants,222697,19/12/2017,19/12/2017,CR480595,M WATSON CONSTRUCTION LTD,20521," 3,112.78 "
http://statistics.data.gov.uk/id/local-authority/12UE,Huntingdonshire District Council,H504,Disabled Facilities Grants,801,Mandatory Grants,218500,28/12/2017,28/12/2017,CR000645,PRINCEBUILD LTD,SIN126008," 3,202.47 "
http://statistics.data.gov.uk/id/local-authority/12UE,Huntingdonshire District Council,H504,Disabled Facilities Grants,801,Mandatory Grants,223144,28/12/2017,28/12/2017,CR000759,STANNAH LTD Ref(20HU025),SO85078412," 3,270.00 "
http://statistics.data.gov.uk/id/local-authority/12UE,Huntingdonshire District Council,H504,Disabled Facilities Grants,801,Mandatory Grants,221769,07/12/2017,07/12/2017,CR000759,STANNAH LTD Ref(20HU025),S085076531," 3,301.00 "
http://statistics.data.gov.uk/id/local-authority/12UE,Huntingdonshire District Council,H504,Disabled Facilities Grants,801,Mandatory Grants,618746,14/12/2017,14/12/2017,CR453810,PREMIER SERVICE AND INSTALLATION,24347," 3,324.00 "
http://statistics.data.gov.uk/id/local-authority/12UE,Huntingdonshire District Council,H504,Disabled Facilities Grants,801,Mandatory Grants,222698,19/12/2017,19/12/2017,CR083280,TOTAL HYGIENE LTD,OP/I133580," 4,005.00 "
http://statistics.data.gov.uk/id/local-authority/12UE,Huntingdonshire District Council,H504,Disabled Facilities Grants,801,Mandatory Grants,221817,19/12/2017,19/12/2017,CR089905,BSG PROPERTY SERVICES LTD,S33221," 4,078.00 "
http://statistics.data.gov.uk/id/local-authority/12UE,Huntingdonshire District Council,H504,Disabled Facilities Grants,801,Mandatory Grants,222397,14/12/2017,14/12/2017,CR424988,GLYCON LTD,INV 002046," 4,187.11 "
http://statistics.data.gov.uk/id/local-authority/12UE,Huntingdonshire District Council,H504,Disabled Facilities Grants,801,Mandatory Grants,221816,19/12/2017,19/12/2017,CR089905,BSG PROPERTY SERVICES LTD,S32909," 4,409.00 "
http://statistics.data.gov.uk/id/local-authority/12UE,Huntingdonshire District Council,H504,Disabled Facilities Grants,801,Mandatory Grants,219133,19/12/2017,19/12/2017,CR089905,BSG PROPERTY SERVICES LTD,S32178," 4,506.00 "
http://statistics.data.gov.uk/id/local-authority/12UE,Huntingdonshire District Council,H504,Disabled Facilities Grants,801,Mandatory Grants,221770,07/12/2017,07/12/2017,CR423434,ACCESS & AUTOMATION LTD,4260," 4,788.00 "
http://statistics.data.gov.uk/id/local-authority/12UE,Huntingdonshire District Council,H504,Disabled Facilities Grants,801,Mandatory Grants,221910,07/12/2017,07/12/2017,CR089905,BSG PROPERTY SERVICES LTD,S32954," 4,863.00 "
http://statistics.data.gov.uk/id/local-authority/12UE,Huntingdonshire District Council,H504,Disabled Facilities Grants,801,Mandatory Grants,222237,14/12/2017,14/12/2017,CR030128,B P MORSE,626," 5,638.00 "
http://statistics.data.gov.uk/id/local-authority/12UE,Huntingdonshire District Council,H504,Disabled Facilities Grants,801,Mandatory Grants,222051,07/12/2017,07/12/2017,CR424786,C3S PROJECTS LIMITED,6784-4," 5,708.73 "
http://statistics.data.gov.uk/id/local-authority/12UE,Huntingdonshire District Council,H504,Disabled Facilities Grants,801,Mandatory Grants,222294,14/12/2017,14/12/2017,CR030128,B P MORSE,625," 6,128.00 "
http://statistics.data.gov.uk/id/local-authority/12UE,Huntingdonshire District Council,H504,Disabled Facilities Grants,801,Mandatory Grants,222783,19/12/2017,19/12/2017,CR030128,B P MORSE,624," 6,730.00 "
http://statistics.data.gov.uk/id/local-authority/12UE,Huntingdonshire District Council,H504,Disabled Facilities Grants,801,Mandatory Grants,618763,14/12/2017,14/12/2017,CR423515,PERSONAL DATA REDACTED,PERSONAL DATA REDACTED," 6,955.00 "
http://statistics.data.gov.uk/id/local-authority/12UE,Huntingdonshire District Council,H504,Disabled Facilities Grants,801,Mandatory Grants,221456,14/12/2017,14/12/2017,CR089905,BSG PROPERTY SERVICES LTD,S32913," 7,400.00 "
http://statistics.data.gov.uk/id/local-authority/12UE,Huntingdonshire District Council,H504,Disabled Facilities Grants,801,Mandatory Grants,223141,28/12/2017,28/12/2017,CR089905,BSG PROPERTY SERVICES LTD,533558," 7,780.95 "
http://statistics.data.gov.uk/id/local-authority/12UE,Huntingdonshire District Council,H504,Disabled Facilities Grants,801,Mandatory Grants,221483,07/12/2017,07/12/2017,CR422148,HD PROPERTY SERVICES,SI-147," 7,987.00 "
http://statistics.data.gov.uk/id/local-authority/12UE,Huntingdonshire District Council,H504,Disabled Facilities Grants,801,Mandatory Grants,221907,07/12/2017,07/12/2017,CR422148,HD PROPERTY SERVICES,SI-117," 9,645.60 "
http://statistics.data.gov.uk/id/local-authority/12UE,Huntingdonshire District Council,H504,Disabled Facilities Grants,801,Mandatory Grants,221465,07/12/2017,07/12/2017,CR089905,BSG PROPERTY SERVICES LTD,S33355," 10,193.04 "
http://statistics.data.gov.uk/id/local-authority/12UE,Huntingdonshire District Council,H504,Disabled Facilities Grants,801,Mandatory Grants,222881,19/12/2017,19/12/2017,CR480892,PRISM MEDICAL UK,5231186," 10,490.00 "
http://statistics.data.gov.uk/id/local-authority/12UE,Huntingdonshire District Council,H504,Disabled Facilities Grants,801,Mandatory Grants,221482,07/12/2017,07/12/2017,CR422300,ASHCO BUILDING & MAINTENANCE SERVICES LTD,AC0214386," 13,403.41 "
http://statistics.data.gov.uk/id/local-authority/12UE,Huntingdonshire District Council,H504,Disabled Facilities Grants,801,Mandatory Grants,223143,28/12/2017,28/12/2017,CR422300,ASHCO BUILDING & MAINTENANCE SERVICES LTD,AC0214406," 14,222.14 "
http://statistics.data.gov.uk/id/local-authority/12UE,Huntingdonshire District Council,H504,Disabled Facilities Grants,801,Mandatory Grants,222295,14/12/2017,14/12/2017,CR089905,BSG PROPERTY SERVICES LTD,S33005," 22,699.74 "
http://statistics.data.gov.uk/id/local-authority/12UE,Huntingdonshire District Council,TC84,St Ives Cattle Market (Wait),810,Contribution (Paid Out),222021,06/12/2017,07/12/2017,CR019599,WAITROSE,W/ROSE CAR PARK," 14,750.00 "
http://statistics.data.gov.uk/id/local-authority/12UE,Huntingdonshire District Council,P011,Community Infrastructure Levy,810,Contribution (Paid Out),222401,19/12/2017,19/12/2017,CR400573,DELOITTE LLP,1111526319," 14,769.25 "
http://statistics.data.gov.uk/id/local-authority/12UE,Huntingdonshire District Council,TC77,St Neots Waitrose,810,Contribution (Paid Out),222021,06/12/2017,07/12/2017,CR019599,WAITROSE,W/ROSE CAR PARK," 28,250.00 "
http://statistics.data.gov.uk/id/local-authority/12UE,Huntingdonshire District Council,HH01,Homelessness,816,Incentive Payment,619045,20/12/2017,20/12/2017,CR425067,PRO-LET PROPERTIES,RM3/16BYRON/, 602.01 
http://statistics.data.gov.uk/id/local-authority/12UE,Huntingdonshire District Council,HH01,Homelessness,816,Incentive Payment,223101,21/12/2017,21/12/2017,CR425073,NEVILLE & WASANA JAYAMAHA,PERSONAL DATA REDACTED, 850.00 
http://statistics.data.gov.uk/id/local-authority/12UE,Huntingdonshire District Council,HH01,Homelessness,816,Incentive Payment,223103,21/12/2017,21/12/2017,CR425076,ERMINE STREET HOUSING,70327867," 1,892.06 "
http://statistics.data.gov.uk/id/local-authority/12UE,Huntingdonshire District Council,HH01,Homelessness,818,Bed & Breakfast Payment,221895,07/12/2017,07/12/2017,CR160753,JAZ YORKS LTD,384/861, 262.50 
http://statistics.data.gov.uk/id/local-authority/12UE,Huntingdonshire District Council,HH01,Homelessness,818,Bed & Breakfast Payment,222335,14/12/2017,14/12/2017,CR160753,JAZ YORKS LTD,384/868, 262.50 
http://statistics.data.gov.uk/id/local-authority/12UE,Huntingdonshire District Council,HH01,Homelessness,818,Bed & Breakfast Payment,222445,14/12/2017,14/12/2017,CR160753,JAZ YORKS LTD,384/874, 262.50 
http://statistics.data.gov.uk/id/local-authority/12UE,Huntingdonshire District Council,HH01,Homelessness,818,Bed & Breakfast Payment,222920,20/12/2017,20/12/2017,CR160753,JAZ YORKS LTD,384/877, 262.50 
http://statistics.data.gov.uk/id/local-authority/12UE,Huntingdonshire District Council,HH01,Homelessness,818,Bed & Breakfast Payment,222446,14/12/2017,14/12/2017,CR160753,JAZ YORKS LTD,384/876, 262.50 
http://statistics.data.gov.uk/id/local-authority/12UE,Huntingdonshire District Council,HH01,Homelessness,818,Bed & Breakfast Payment,222917,20/12/2017,20/12/2017,CR160753,JAZ YORKS LTD,384/880, 262.50 
http://statistics.data.gov.uk/id/local-authority/12UE,Huntingdonshire District Council,HH01,Homelessness,818,Bed & Breakfast Payment,221896,07/12/2017,07/12/2017,CR160753,JAZ YORKS LTD,384/865, 262.50 
http://statistics.data.gov.uk/id/local-authority/12UE,Huntingdonshire District Council,HH01,Homelessness,818,Bed & Breakfast Payment,222331,14/12/2017,14/12/2017,CR160753,JAZ YORKS LTD,384/871, 262.50 
http://statistics.data.gov.uk/id/local-authority/12UE,Huntingdonshire District Council,HH01,Homelessness,818,Bed & Breakfast Payment,222333,14/12/2017,14/12/2017,CR160753,JAZ YORKS LTD,384/869, 262.50 
http://statistics.data.gov.uk/id/local-authority/12UE,Huntingdonshire District Council,HH01,Homelessness,818,Bed & Breakfast Payment,222916,20/12/2017,20/12/2017,CR160753,JAZ YORKS LTD,384/881, 262.50 
http://statistics.data.gov.uk/id/local-authority/12UE,Huntingdonshire District Council,HH01,Homelessness,818,Bed & Breakfast Payment,221897,07/12/2017,07/12/2017,CR160753,JAZ YORKS LTD,384/866, 275.00 
http://statistics.data.gov.uk/id/local-authority/12UE,Huntingdonshire District Council,HH01,Homelessness,818,Bed & Breakfast Payment,618444,07/12/2017,07/12/2017,CR410824,COACH & HORSES,308, 280.00 
http://statistics.data.gov.uk/id/local-authority/12UE,Huntingdonshire District Council,HH01,Homelessness,818,Bed & Breakfast Payment,618757,14/12/2017,14/12/2017,CR410824,COACH & HORSES,309, 280.00 
http://statistics.data.gov.uk/id/local-authority/12UE,Huntingdonshire District Council,HH01,Homelessness,818,Bed & Breakfast Payment,619042,20/12/2017,20/12/2017,CR410824,COACH & HORSES,310, 280.00 
http://statistics.data.gov.uk/id/local-authority/12UE,Huntingdonshire District Council,HH01,Homelessness,818,Bed & Breakfast Payment,618444,07/12/2017,07/12/2017,CR410824,COACH & HORSES,308, 280.00 
http://statistics.data.gov.uk/id/local-authority/12UE,Huntingdonshire District Council,HH01,Homelessness,818,Bed & Breakfast Payment,618757,14/12/2017,14/12/2017,CR410824,COACH & HORSES,309, 280.00 
http://statistics.data.gov.uk/id/local-authority/12UE,Huntingdonshire District Council,HH01,Homelessness,818,Bed & Breakfast Payment,619042,20/12/2017,20/12/2017,CR410824,COACH & HORSES,310, 280.00 
http://statistics.data.gov.uk/id/local-authority/12UE,Huntingdonshire District Council,HH01,Homelessness,818,Bed & Breakfast Payment,618444,07/12/2017,07/12/2017,CR410824,COACH & HORSES,308, 315.00 
http://statistics.data.gov.uk/id/local-authority/12UE,Huntingdonshire District Council,HH01,Homelessness,818,Bed & Breakfast Payment,618757,14/12/2017,14/12/2017,CR410824,COACH & HORSES,309, 315.00 
http://statistics.data.gov.uk/id/local-authority/12UE,Huntingdonshire District Council,HH01,Homelessness,818,Bed & Breakfast Payment,619042,20/12/2017,20/12/2017,CR410824,COACH & HORSES,310, 315.00 
http://statistics.data.gov.uk/id/local-authority/12UE,Huntingdonshire District Council,HH01,Homelessness,818,Bed & Breakfast Payment,618444,07/12/2017,07/12/2017,CR410824,COACH & HORSES,308, 315.00 
http://statistics.data.gov.uk/id/local-authority/12UE,Huntingdonshire District Council,HH01,Homelessness,818,Bed & Breakfast Payment,618757,14/12/2017,14/12/2017,CR410824,COACH & HORSES,309, 315.00 
http://statistics.data.gov.uk/id/local-authority/12UE,Huntingdonshire District Council,HH01,Homelessness,818,Bed & Breakfast Payment,619042,20/12/2017,20/12/2017,CR410824,COACH & HORSES,310, 315.00 
http://statistics.data.gov.uk/id/local-authority/12UE,Huntingdonshire District Council,HH01,Homelessness,818,Bed & Breakfast Payment,221893,07/12/2017,07/12/2017,CR160753,JAZ YORKS LTD,384/867, 320.84 
http://statistics.data.gov.uk/id/local-authority/12UE,Huntingdonshire District Council,HH01,Homelessness,818,Bed & Breakfast Payment,222336,14/12/2017,14/12/2017,CR160753,JAZ YORKS LTD,3841870, 320.84 
http://statistics.data.gov.uk/id/local-authority/12UE,Huntingdonshire District Council,HH01,Homelessness,818,Bed & Breakfast Payment,222447,14/12/2017,14/12/2017,CR160753,JAZ YORKS LTD,384/875, 320.84 
http://statistics.data.gov.uk/id/local-authority/12UE,Huntingdonshire District Council,HH01,Homelessness,818,Bed & Breakfast Payment,222919,20/12/2017,20/12/2017,CR160753,JAZ YORKS LTD,384/879, 320.84 
http://statistics.data.gov.uk/id/local-authority/12UE,Huntingdonshire District Council,HH01,Homelessness,818,Bed & Breakfast Payment,221788,07/12/2017,07/12/2017,CR423164,UKOS PROJECTS LTD,EC1728, 350.00 
http://statistics.data.gov.uk/id/local-authority/12UE,Huntingdonshire District Council,HH01,Homelessness,818,Bed & Breakfast Payment,222328,14/12/2017,14/12/2017,CR423164,UKOS PROJECTS LTD,EC1729, 350.00 
http://statistics.data.gov.uk/id/local-authority/12UE,Huntingdonshire District Council,HH01,Homelessness,818,Bed & Breakfast Payment,222745,20/12/2017,20/12/2017,CR423164,UKOS PROJECTS LTD,EC1730, 350.00 
http://statistics.data.gov.uk/id/local-authority/12UE,Huntingdonshire District Council,HH01,Homelessness,818,Bed & Breakfast Payment,221903,07/12/2017,07/12/2017,CR424138,RENT CONNECT,RC-HDC024, 360.00 
http://statistics.data.gov.uk/id/local-authority/12UE,Huntingdonshire District Council,HH01,Homelessness,818,Bed & Breakfast Payment,618444,07/12/2017,07/12/2017,CR410824,COACH & HORSES,308, 385.00 
http://statistics.data.gov.uk/id/local-authority/12UE,Huntingdonshire District Council,HH01,Homelessness,818,Bed & Breakfast Payment,618757,14/12/2017,14/12/2017,CR410824,COACH & HORSES,309, 385.00 
http://statistics.data.gov.uk/id/local-authority/12UE,Huntingdonshire District Council,HH01,Homelessness,818,Bed & Breakfast Payment,619042,20/12/2017,20/12/2017,CR410824,COACH & HORSES,310, 385.00 
http://statistics.data.gov.uk/id/local-authority/12UE,Huntingdonshire District Council,HH01,Homelessness,818,Bed & Breakfast Payment,618444,07/12/2017,07/12/2017,CR410824,COACH & HORSES,308, 385.00 
http://statistics.data.gov.uk/id/local-authority/12UE,Huntingdonshire District Council,HH01,Homelessness,818,Bed & Breakfast Payment,618757,14/12/2017,14/12/2017,CR410824,COACH & HORSES,309, 385.00 
http://statistics.data.gov.uk/id/local-authority/12UE,Huntingdonshire District Council,HH01,Homelessness,818,Bed & Breakfast Payment,619042,20/12/2017,20/12/2017,CR410824,COACH & HORSES,310, 385.00 
http://statistics.data.gov.uk/id/local-authority/12UE,Huntingdonshire District Council,HH01,Homelessness,818,Bed & Breakfast Payment,618444,07/12/2017,07/12/2017,CR410824,COACH & HORSES,308, 385.00 
http://statistics.data.gov.uk/id/local-authority/12UE,Huntingdonshire District Council,HH01,Homelessness,818,Bed & Breakfast Payment,618757,14/12/2017,14/12/2017,CR410824,COACH & HORSES,309, 385.00 
http://statistics.data.gov.uk/id/local-authority/12UE,Huntingdonshire District Council,HH01,Homelessness,818,Bed & Breakfast Payment,619042,20/12/2017,20/12/2017,CR410824,COACH & HORSES,310, 385.00 
http://statistics.data.gov.uk/id/local-authority/12UE,Huntingdonshire District Council,HH01,Homelessness,818,Bed & Breakfast Payment,221903,07/12/2017,07/12/2017,CR424138,RENT CONNECT,RC-HDC024, 418.00 
http://statistics.data.gov.uk/id/local-authority/12UE,Huntingdonshire District Council,HH01,Homelessness,818,Bed & Breakfast Payment,221898,07/12/2017,07/12/2017,CR160753,JAZ YORKS LTD,384/862, 437.50 
http://statistics.data.gov.uk/id/local-authority/12UE,Huntingdonshire District Council,HH01,Homelessness,818,Bed & Breakfast Payment,221899,07/12/2017,07/12/2017,CR160753,JAZ YORKS LTD,384/863, 437.50 
http://statistics.data.gov.uk/id/local-authority/12UE,Huntingdonshire District Council,HH01,Homelessness,818,Bed & Breakfast Payment,221900,07/12/2017,07/12/2017,CR160753,JAZ YORKS LTD,384/864, 437.50 
http://statistics.data.gov.uk/id/local-authority/12UE,Huntingdonshire District Council,HH01,Homelessness,818,Bed & Breakfast Payment,222918,20/12/2017,20/12/2017,CR160753,JAZ YORKS LTD,384/878, 437.50 
http://statistics.data.gov.uk/id/local-authority/12UE,Huntingdonshire District Council,HH01,Homelessness,818,Bed & Breakfast Payment,221903,07/12/2017,07/12/2017,CR424138,RENT CONNECT,RC-HDC024, 495.00 
http://statistics.data.gov.uk/id/local-authority/12UE,Huntingdonshire District Council,HH01,Homelessness,818,Bed & Breakfast Payment,221903,07/12/2017,07/12/2017,CR424138,RENT CONNECT,RC-HDC024, 570.00 
http://statistics.data.gov.uk/id/local-authority/12UE,Huntingdonshire District Council,HH01,Homelessness,818,Bed & Breakfast Payment,221903,07/12/2017,07/12/2017,CR424138,RENT CONNECT,RC-HDC024, 630.00 
http://statistics.data.gov.uk/id/local-authority/12UE,Huntingdonshire District Council,HH01,Homelessness,818,Bed & Breakfast Payment,221903,07/12/2017,07/12/2017,CR424138,RENT CONNECT,RC-HDC024, 675.00 
http://statistics.data.gov.uk/id/local-authority/12UE,Huntingdonshire District Council,HH01,Homelessness,818,Bed & Breakfast Payment,221903,07/12/2017,07/12/2017,CR424138,RENT CONNECT,RC-HDC024, 675.00 
http://statistics.data.gov.uk/id/local-authority/12UE,Huntingdonshire District Council,HH01,Homelessness,818,Bed & Breakfast Payment,221903,07/12/2017,07/12/2017,CR424138,RENT CONNECT,RC-HDC024, 675.00 
http://statistics.data.gov.uk/id/local-authority/12UE,Huntingdonshire District Council,HH01,Homelessness,818,Bed & Breakfast Payment,221903,07/12/2017,07/12/2017,CR424138,RENT CONNECT,RC-HDC024, 675.00 
http://statistics.data.gov.uk/id/local-authority/12UE,Huntingdonshire District Council,HH01,Homelessness,818,Bed & Breakfast Payment,221903,07/12/2017,07/12/2017,CR424138,RENT CONNECT,RC-HDC024, 675.00 
http://statistics.data.gov.uk/id/local-authority/12UE,Huntingdonshire District Council,HH01,Homelessness,818,Bed & Breakfast Payment,221903,07/12/2017,07/12/2017,CR424138,RENT CONNECT,RC-HDC024, 675.00 
http://statistics.data.gov.uk/id/local-authority/12UE,Huntingdonshire District Council,HH01,Homelessness,818,Bed & Breakfast Payment,221903,07/12/2017,07/12/2017,CR424138,RENT CONNECT,RC-HDC024, 675.00 
http://statistics.data.gov.uk/id/local-authority/12UE,Huntingdonshire District Council,HH01,Homelessness,818,Bed & Breakfast Payment,221903,07/12/2017,07/12/2017,CR424138,RENT CONNECT,RC-HDC024, 675.00 
http://statistics.data.gov.uk/id/local-authority/12UE,Huntingdonshire District Council,HH01,Homelessness,818,Bed & Breakfast Payment,221903,07/12/2017,07/12/2017,CR424138,RENT CONNECT,RC-HDC024, 685.00 
http://statistics.data.gov.uk/id/local-authority/12UE,Huntingdonshire District Council,HH01,Homelessness,818,Bed & Breakfast Payment,221903,07/12/2017,07/12/2017,CR424138,RENT CONNECT,RC-HDC024, 825.00 
http://statistics.data.gov.uk/id/local-authority/12UE,Huntingdonshire District Council,HH01,Homelessness,818,Bed & Breakfast Payment,221903,07/12/2017,07/12/2017,CR424138,RENT CONNECT,RC-HDC024, 825.00 
http://statistics.data.gov.uk/id/local-authority/12UE,Huntingdonshire District Council,HH01,Homelessness,818,Bed & Breakfast Payment,221903,07/12/2017,07/12/2017,CR424138,RENT CONNECT,RC-HDC024, 825.00 
http://statistics.data.gov.uk/id/local-authority/12UE,Huntingdonshire District Council,HH01,Homelessness,818,Bed & Breakfast Payment,221903,07/12/2017,07/12/2017,CR424138,RENT CONNECT,RC-HDC024, 825.00 
http://statistics.data.gov.uk/id/local-authority/12UE,Huntingdonshire District Council,HH01,Homelessness,818,Bed & Breakfast Payment,221903,07/12/2017,07/12/2017,CR424138,RENT CONNECT,RC-HDC024, 825.00 
http://statistics.data.gov.uk/id/local-authority/12UE,Huntingdonshire District Council,HH01,Homelessness,818,Bed & Breakfast Payment,221903,07/12/2017,07/12/2017,CR424138,RENT CONNECT,RC-HDC024, 900.00 
http://statistics.data.gov.uk/id/local-authority/12UE,Huntingdonshire District Council,HH01,Homelessness,818,Bed & Breakfast Payment,221903,07/12/2017,07/12/2017,CR424138,RENT CONNECT,RC-HDC024, 975.00 
http://statistics.data.gov.uk/id/local-authority/12UE,Huntingdonshire District Council,GA12,Nndr Tariff/Topup To/From Govt,861,Levies,50336,31/12/2017,25/01/2018,,,," 1,383,903.00 "
http://statistics.data.gov.uk/id/local-authority/12UE,Huntingdonshire District Council,ZP02,Operations Diesel Stock,980,Stock Purchases,222056,07/12/2017,07/12/2017,CR455975,CERTAS ENERGY T/A PACE FUELCARE,8506686,"-28,476.00 "
http://statistics.data.gov.uk/id/local-authority/12UE,Huntingdonshire District Council,ZP02,Operations Diesel Stock,980,Stock Purchases,222487,19/12/2017,20/12/2017,CR455975,CERTAS ENERGY T/A PACE FUELCARE,8943371," 29,150.03 "
http://statistics.data.gov.uk/id/local-authority/12UE,Huntingdonshire District Council,GA02,Government Grant Support,B53,R S G,50336,31/12/2017,25/01/2018,,,,"-94,548.00 "
